Workbook

Sheet List of Charts
A1: CHARTS
A3: SECTION A
A4: Front Page Infographic
A5: Headline Chart 1 | B5: Scottish Greenhouse Gas Emissions, 1990 to 2016. Values in MtCO2e
A6: Headline Chart 2 | B6: Scottish Greenhouse Gas Emissions, Adjusted for the EU Emissions Trading System, (EU ETS). 1990 to 2016. Values in MtCO2e
A8: SECTION B
A9: Chart B1 | B9: Sources of Scottish Greenhouse Gas Emissions, 2016. Values in MtCO2e
A10: Chart B2 | B10: Main Sources of Greenhouse Gas Emissions in Scotland, 1990 to 2016. Values in MtCO2e
A11: Chart B3 | B11: Generation of electricity by fuel, Scotland, 2004 to 2016. Percentage of electricity generated by year
A12: Chart B4 | B12: Gas and Coal prices for large users in the UK (2004 to 2016) - pence per kWh
A13: Chart B5 | B13: Change in Net Emissions by Scottish Government sector between 1990 and 2016 - in MtCO2e and percentage changes
A14: Chart B6 | B14: Change in Net Emissions by Scottish Government sector between 2014 and 2016 - in MtCO2e and percentage changes
A15: Chart B7 | B15: Mean air temperature by month, Scotland. 2014 and 2016. Values in °C
A16: Chart B8 | B16: Scottish Greenhouse Gases, by gas, 1990 to 2016. Values in MtCO2e
A17: Chart B9 | B17: Carbon dioxide (CO2) emissions by Scottish Government sector, 1990 to 2016, Values in MtCO2e
A18: Chart B10 | B18: Methane (CH4) emissions by Scottish Government sector, 1990 to 2016. Values in MtCO2e
A19: Chart B11 | B19: Nitrous oxide (N2O) emissions by Scottish Government sector, 1990 to 2016. Values in MtCO2e
A20: Chart B12 | B20: F gas emissions by Scottish Government sector, 1990 to 2016. Values in MtCO2e
A22: SECTION C
A23: Chart C1 | B23: Estimate of Traded Emissions Surrendered in the EU Emissions Trading System (EU ETS) and Non-Traded Greenhouse Gas Emissions by Scottish Government Sector, 2016. Values in MtCO2e
A24: Chart C2 | B24: Calculation of Adjusted Emissions to take into account of trading in the EU Emissions Trading System (EU ETS), 2016. Values in MtCO2e
A25: Chart C3 | B25: Percentage reductions targets - Based on adjusted emissions. Values in MtCO2e
A26: Chart C4 | B26: Comparison of Adjusted emissions and the Fixed Annual Targets which are based on 1990-2008 inventory. Values in MtCO2e
A27: Chart C5 | B27: Greenhouse Gases Adjusted to take into account of trading in the EU Emissions Trading System (EU ETS). Values in MtCO2e
A29: SECTION D
A30: Chart D1 | B30: Scottish Greenhouse Gas Emissions. Comparison of 1990-2015 and 1990-2016 Inventories. Values in MtCO2e
A31: Chart D2 | B31: Revisions to emissions in the Baseline Period, from the 1990-2015 inventory to the 1990-2016 inventory, by source sector. Values in MtCO2e, and percentage changes
A32: Chart D3 | B32: Revisions to emissions in 2015, from the 1990-2015 inventory to the 1990-2016 inventory, by source sector. Values in MtCO2e, and percentage changes
A33: Chart D4 | B33: Revisions to emissions in the Baseline Period, from the 1990-2008 inventory, to the latest inventory. Impact of year-on-year revisions. Values in MtCO2e
A34: Chart D5 | B34: Scottish Greenhouse Gas Emissions, Comparison of 1990-2008 and 1990-2016 Inventories. Values in MtCO2e
A35: Chart D6 | B35: Revisions to the Baseline, from the 1990-2008 Inventory to the Latest Inventory (1990-2016), by source sector. Impact of Successive Revisions. Values in MtCO2e, and percentage changes

Sheet FRONT PAGE INFOGRAPHIC

Sheet A1. Headline Chart data
A1: Scottish Greenhouse Gas Emissions, 1990 to 2016. Values in MtCO2e
A3: Baseline Period | B3: 1990 | C3: 1991 | D3: 1992 | E3: 1993 | F3: 1994 | G3: 1995 | H3: 1996 | I3: 1997 | J3: 1998 | K3: 1999 | L3: 2000 | M3: 2001 | N3: 2002 | O3: 2003 | P3: 2004 | Q3: 2005 | R3: 2006 | S3: 2007 | T3: 2008 | U3: 2009 | V3: 2010 | W3: 2011 | X3: 2012 | Y3: 2013 | Z3: 2014 | AA3: 2015 | AB3: 2016 | AC3: % change 2015 to 2016 | AD3: change 2015 to 2016 | AE3: % change 1990 to 2016 | AF3: change 1990 to 2016
A4: 75.7 | B4: 75.6 | G4: 75.6 | J4: 74.2 | K4: 70.9 | L4: 72.0 | M4: 71.3 | N4: 67.0 | O4: 66.6 | P4: 64.1 | Q4: 62.1 | R4: 64.3 | S4: 59.9 | T4: 58.6 | U4: 54.2 | V4: 55.8 | W4: 49.2 | X4: 51.5 | Y4: 48.4 | Z4: 44.4 | AA4: 43.0 | AB4: 38.6 | AC4: =(AB4-AA4)/AA4 -> -10.3% | AD4: =AB4-AA4 -> -4.4 | AE4: =(AB4-B4)/B4 -> -49.0% | AF4: =AB4-B4 -> -37.0

Sheet A2. Headline Chart data
A1: Scottish Greenhouse Gas Emissions. Adjusted for the EU Emissions Trading System, (EU ETS), Baseline Period to 2016. Values in MtCO2e
A3: Baseline Period | B3: 1991 | C3: 1992 | D3: 1993 | E3: 1994 | F3: 1995 | G3: 1996 | H3: 1997 | I3: 1998 | J3: 1999 | K3: 2000 | L3: 2001 | M3: 2002 | N3: 2003 | O3: 2004 | P3: 2005 | Q3: 2006 | R3: 2007 | S3: 2008 | T3: 2009 | U3: 2010 | V3: 2011 | W3: 2012 | X3: 2013 | Y3: 2014 | Z3: 2015 | AA3: 2016 | AB3: % change 2015 to 2016 | AC3: change 2015 to 2016 | AD3: % change Baseline to 2016 | AE3: change Baseline to 2016
A4: 75.7 | F4: 75.6 | I4: 74.2 | J4: 70.9 | K4: 72.0 | L4: 71.3 | M4: 67.0 | N4: 66.6 | O4: 64.1 | P4: 62.9 | Q4: 60.6 | R4: 59.7 | S4: 57.8 | T4: 55.2 | U4: 54.7 | V4: 52.0 | W4: 54.2 | X4: 45.2 | Y4: 39.5 | Z4: 40.5 | AA4: 41.5 | AB4: =(AA4-Z4)/Z4 -> 2.5% | AC4: =AA4-Z4 -> 1.0 | AD4: =(AA4-$A4)/$A4 -> -45.2% | AE4: =AA4-$A4 -> -34.2

Sheet Chart B1 data
A1: Sources of Scottish Greenhouse Gas Emissions, 2016. Values in MtCO2e
A3: Source Sector | B3: 2016 | C3: % share of 2016
A4: Total greenhouse gas emissions | B4: 38.6 | C4: =B4/B$4 -> 100%
A5: Transport (including International Aviation and Shipping) | B5: 14.4 | C5: =B5/B$4 -> 37%
A6: Agriculture and Related Land Use | B6: 10.0 | C6: =B6/B$4 -> 26%
A7: Business and Industrial process | B7: 8.6 | C7: =B7/B$4 -> 22%
A8: Energy Supply | B8: 7.2 | C8: =B8/B$4 -> 19%
A9: Residential | B9: 6.3 | C9: 16%
A10: Development | B10: 2.0 | C10: =B10/B$4 -> 5%
A11: Waste Management | B11: 1.6 | C11: =B11/B$4 -> 4%
A12: Public Sector Buildings | B12: 1.1 | C12: 3%
A13: Forestry | B13: -12.7 | C13: -33%

Sheet Chart B2 data
A1: Greenhouse Gas Emissions in Scotland by source sector: Baseline Period, 1990 to 2016. Values in MtCO2e
A4: Source Sector | B4: Baseline Period | C4: 1990 | D4: 1995 | E4: 1998 | F4: 1999 | G4: 2000 | H4: 2001 | I4: 2002 | J4: 2003 | K4: 2004 | L4: 2005 | M4: 2006 | N4: 2007 | O4: 2008 | P4: 2009 | Q4: 2010 | R4: 2011 | S4: 2012 | T4: 2013 | U4: 2014 | V4: 2015 | W4: 2016 | X4: Change between 1990 and 2016 | Y4: % change between 1990 and 2016
A5: Total greenhouse gas emissions | B5: 75.7 | C5: 75.6 | D5: 75.6 | E5: 74.2 | F5: 70.9 | G5: 72.0 | H5: 71.3 | I5: 67.0 | J5: 66.6 | K5: 64.1 | L5: 62.1 | M5: 64.3 | N5: 59.9 | O5: 58.6 | P5: 54.2 | Q5: 55.8 | R5: 49.2 | S5: 51.5 | T5: 48.4 | U5: 44.4 | V5: 43.0 | W5: 38.6 | X5: =W5-C5 -> -37.0 | Y5: =(W5-C5)/C5 -> -49.0%
A6: Energy Supply | B6: 22.7 | C6: 22.7 | D6: 26.8 | E6: 25.8 | F6: 23.4 | G6: 26.3 | H6: 25.6 | I6: 23.5 | J6: 23.7 | K6: 21.9 | L6: 20.8 | M6: 24.7 | N6: 21.4 | O6: 20.1 | P6: 18.7 | Q6: 20.9 | R6: 17.0 | S6: 17.4 | T6: 16.0 | U6: 13.9 | V6: 12.2 | W6: 7.2 | X6: =W6-C6 -> -15.6 | Y6: =(W6-C6)/C6 -> -68.5%
A7: Transport (including International Aviation and Shipping) | B7: 14.8 | C7: 14.8 | D7: 15.7 | E7: 16.4 | F7: 16.3 | G7: 15.6 | H7: 15.4 | I7: 15.8 | J7: 15.6 | K7: 15.7 | L7: 15.8 | M7: 15.8 | N7: 16.1 | O7: 15.5 | P7: 14.9 | Q7: 14.3 | R7: 13.9 | S7: 13.7 | T7: 13.6 | U7: 13.8 | V7: 14.1 | W7: 14.4 | X7: =W7-C7 -> -0.4 | Y7: =(W7-C7)/C7 -> -2.5%
A8: Transport (excluding IA&S) | B8: 13.5 | C8: 13.5 | D8: 14.2 | E8: 14.6 | F8: 14.7 | G8: 14.2 | H8: 13.9 | I8: 14.4 | J8: 14.2 | K8: 14.2 | L8: 14.2 | M8: 14.1 | N8: 14.4 | O8: 13.8 | P8: 13.2 | Q8: 12.9 | R8: 12.4 | S8: 12.2 | T8: 12.0 | U8: 12.2 | V8: 12.4 | W8: 12.6 | X8: =W8-C8 -> -0.9 | Y8: -6.5%
A9: International Aviation and Shipping (IA&S) | B9: 1.3 | C9: 1.3 | D9: 1.5 | E9: 1.7 | F9: 1.6 | G9: 1.4 | H9: 1.5 | I9: 1.4 | J9: 1.3 | K9: 1.5 | L9: 1.6 | M9: 1.7 | N9: 1.7 | O9: 1.8 | P9: 1.6 | Q9: 1.4 | R9: 1.5 | S9: 1.5 | T9: 1.5 | U9: 1.6 | V9: 1.7 | W9: 1.8 | X9: 0.5 | Y9: 39.7%
A10: Agriculture and Related Land Use | B10: 13.9 | C10: 13.9 | D10: 14.1 | E10: 14.0 | F10: 13.9 | G10: 13.7 | H10: 13.2 | I10: 12.9 | J10: 13.0 | K10: 12.5 | L10: 12.3 | M10: 11.9 | N10: 11.9 | O10: 11.2 | P10: 11.2 | Q10: 11.1 | R10: 10.7 | S10: 10.5 | T10: 10.4 | U10: 10.4 | V10: 10.2 | W10: 10.0 | X10: -3.9 | Y10: -27.8%
A11: Business and Industrial process | B11: 14.4 | C11: 14.4 | D11: 11.2 | E11: 11.2 | F11: 11.4 | G11: 11.3 | H11: 11.6 | I11: 10.8 | J11: 11.0 | K11: 10.9 | L11: 10.6 | M11: 10.3 | N11: 9.9 | O11: 10.4 | P11: 9.2 | Q11: 9.4 | R11: 9.1 | S11: 9.0 | T11: 9.2 | U11: 8.7 | V11: 8.7 | W11: 8.6 | X11: =W11-C11 -> -5.8 | Y11: =(W11-C11)/C11 -> -40.5%
A12: Residential | B12: 8.1 | C12: 8.0 | D12: 7.8 | E12: 8.1 | F12: 8.0 | G12: 7.8 | H12: 8.3 | I12: 7.6 | J12: 7.6 | K12: 7.8 | L12: 7.7 | M12: 7.5 | N12: 7.3 | O12: 7.5 | P12: 7.2 | Q12: 8.0 | R12: 6.5 | S12: 7.0 | T12: 7.1 | U12: 5.9 | V12: 6.1 | W12: 6.3 | X12: -1.7 | Y12: -21.1%
A13: Waste Management | B13: 6.0 | C13: 6.0 | D13: 6.2 | E13: 6.1 | F13: 5.8 | G13: 5.7 | H13: 5.4 | I13: 5.2 | J13: 5.1 | K13: 4.4 | L13: 4.0 | M13: 3.6 | N13: 3.2 | O13: 3.1 | P13: 2.8 | Q13: 2.5 | R13: 2.4 | S13: 2.1 | T13: 1.5 | U13: 1.5 | V13: 1.7 | W13: 1.6 | X13: -4.4 | Y13: -72.8%
A14: Other sources * | B14: =(B15+B16) -> 3.6 | C14: =(C15+C16) -> 3.6 | D14: 3.7 | E14: 3.6 | F14: 3.6 | G14: 3.5 | H14: 3.5 | I14: 3.3 | J14: 3.4 | K14: 3.6 | L14: 3.5 | M14: 3.2 | N14: 3.1 | O14: 3.2 | P14: 3.1 | Q14: 3.2 | R14: 3.0 | S14: 3.1 | T14: 3.1 | U14: 2.9 | V14: 2.9 | W14: =(W15+W16) -> 3.1 | X14: -0.5 | Y14: -13.3%
A15: Development | B15: 1.9 | C15: 1.9 | D15: 1.9 | E15: 1.9 | F15: 1.9 | G15: 1.9 | H15: 1.8 | I15: 1.9 | J15: 1.9 | K15: 2.0 | L15: 2.0 | M15: 1.8 | N15: 1.9 | O15: 1.9 | P15: 1.9 | Q15: 1.9 | R15: 1.9 | S15: 1.9 | T15: 1.9 | U15: 1.9 | V15: 1.9 | W15: 2.0 | X15: 0.1 | Y15: 7.0%
A16: Public Sector Buildings | B16: 1.7 | C16: 1.7 | D16: 1.8 | E16: 1.8 | F16: 1.7 | G16: 1.6 | H16: 1.7 | I16: 1.4 | J16: 1.4 | K16: 1.6 | L16: 1.5 | M16: 1.4 | N16: 1.3 | O16: 1.3 | P16: 1.2 | Q16: 1.3 | R16: 1.1 | S16: 1.2 | T16: 1.2 | U16: 1.0 | V16: 1.1 | W16: 1.1 | X16: -0.6 | Y16: -36.0%
A17: Forestry | B17: -7.8 | C17: -7.8 | D17: -10.0 | E17: -10.9 | F17: -11.5 | G17: -11.9 | H17: -11.8 | I17: -12.1 | J17: -12.6 | K17: -12.7 | L17: -12.6 | M17: -12.7 | N17: -13.1 | O17: -12.4 | P17: -12.7 | Q17: -13.7 | R17: -13.5 | S17: -11.3 | T17: -12.4 | U17: -12.7 | V17: -12.9 | W17: -12.7 | X17: -4.8 | Y17: =(W17-C17)/C17 -> 61.8%

Sheet Chart B3 data
A1: Generation of electricity by fuel in Scotland, 2000 to 2016
A5: Electricity Generation by Fuel (GWh), Scotland, 2000-2016
B6: 2000 | C6: 2001 | D6: 2002 | E6: 2003 | F6: 2004 | G6: 2005 | H6: 2006 | I6: 2007 | J6: 2008 | K6: 2009 | L6: 2010 | M6: 2011 | N6: 2012 | O6: 2013 | P6: 2014 | Q6: 2015 | R6: 2016
A7: Nuclear | B7: 16,918 | C7: 18,097 | D7: 15,828 | E7: 18,394 | F7: 18,013 | G7: 18,681 | H7: 14,141 | I7: 12,344 | J7: 15,079 | K7: 16,681 | L7: 15,293 | M7: 16,892 | N7: 17,050 | O7: 18,498 | P7: 16,633 | Q7: 17,763 | R7: 19,630
A8: Renewables | B8: 4,971 | C8: 4,203 | D8: 5,098 | E8: 3,725 | F8: 5,832 | G8: 6,486 | H8: 6,963 | I8: 8,226 | J8: 9,058 | K8: 10,582 | L8: 9,465 | M8: 13,686 | N8: 14,795 | O8: 17,005 | P8: 19,041 | Q8: 21,759 | R8: 19,676
A9: Coal * | B9: 16,624 | C9: 15,408 | D9: 14,861 | E9: 14,566 | F9: 13,080 | G9: 12,158 | H9: 17,560 | I9: 13,877 | J9: 11,683 | K9: 11,982 | L9: 14,730 | M9: 10,793 | N9: 11,754 | O9: 10,839 | P9: 10,315 | Q9: 8,508 | R9: 2,238
A10: Gas | B10: 8,671 | C10: 8,523 | D10: 11,034 | E10: 10,025 | F10: 10,835 | G10: 9,367 | H10: 10,212 | I10: 10,931 | J10: 11,608 | K10: 9,370 | L10: 8,388 | M10: 8,255 | N10: 5,613 | O10: 5,439 | P10: 2,723 | Q10: 1,919 | R10: 3,130
A11: *Coal includes a small quantity of non-renewable wastes and other thermal.
A15: Source(s): Generation of electricity by fuel in Scotland, Wales, Northern Ireland and England, 2004 to 2016 (GWh), BEIS
A16: General weblink(s): | B16: https://www.gov.uk/government/statistics/energy-trends-december-2017-special-feature-article-electricity-generation-and-supply-figures-for-scotland-wales-northern-ireland-and-england-2
A17: Specific data weblink(s): | B17: https://www.gov.uk/government/uploads/system/uploads/attachment_data/file/669722/regional-generation-2004-2016.xls

Sheet Chart B4 data
A1: Gas and Coal prices for large users in the UK (2004 to 2016) - pence per kWh
B4: 2004 | C4: 2005 | D4: 2006 | E4: 2007 | F4: 2008 | G4: 2009 | H4: 2010 | I4: 2011 | J4: 2012 | K4: 2013 | L4: 2014 | M4: 2015 | N4: 2016
A5: COAL | B5: 0.468 | C5: 0.549 | D5: 0.520 | E5: 0.628 | F5: 0.816 | G5: 0.746 | H5: 0.856 | I5: 0.943 | J5: 0.922 | K5: 0.949 | L5: 0.937 | M5: 0.867 | N5: 0.789
A6: GAS | B6: 0.961 | C6: 1.387 | D6: 1.804 | E6: 1.474 | F6: 2.114 | G6: 1.906 | H6: 1.738 | I6: 2.109 | J6: 2.306 | K6: 2.540 | L6: 2.243 | M6: 1.932 | N6: 1.593
A7: Right Axis: relative price of Coal (where Gas = 100) | B7: 49 | C7: 40 | D7: 29 | E7: 43 | F7: 39 | G7: 39 | H7: 49 | I7: 45 | J7: 40 | K7: 37 | L7: 42 | M7: 45 | N7: 50
A12: Source(s): Prices of fuels purchased by manufacturing industry in Great Britain (p/kWh), BEIS
A13: General weblink(s): | B13: https://www.gov.uk/government/collections/digest-of-uk-energy-statistics-dukes
A14: Specific data weblink(s): | B14: https://www.gov.uk/government/uploads/system/uploads/attachment_data/file/295522/qep314.xls
A15: Next Update: June 2018

Sheet Chart B5 data
A1: Change in emissions by Scottish Government sector between 1990 and 2016 - in MtCO2e and percentage changes
B4: Change between 1990 and 2016 (in Mt CO2e) | C4: % change between 1990 and 2016
A5: Total greenhouse gas emissions | B5: -37.0 | C5: -49.0%
A6: Energy Supply | B6: -15.6 | C6: -68.5%
A7: Business and Industrial Process | B7: -5.8 | C7: -40.5%
A8: Forestry | B8: -4.8 | C8: 61.8%
A9: Waste Management | B9: -4.4 | C9: -72.8%
A10: Agriculture and Related Land Use | B10: -3.9 | C10: -27.8%
A11: Residential | B11: -1.7 | C11: -21.1%
A12: Transport (excluding international aviation and shipping) | B12: -0.9 | C12: -6.5%
A13: Public Sector Buildings | B13: -0.6 | C13: -36.0%
A14: Development | B14: 0.1 | C14: 7.0%
A15: International aviation and shipping | B15: 0.5 | C15: 39.7%

Sheet Chart B6 data
A1: Change in emissions by sector between 2015 and 2016- in MtCO2e and percentage changes
B4: Change between 2015 and 2016 (in MtCO2e) | C4: % change between 2015 and 2016
A5: Energy Supply | B5: -5.1 | C5: -41.4%
A6: Total greenhouse gas emissions | B6: -4.4 | C6: -10.3%
A7: Agriculture and Related Land Use | B7: -0.1 | C7: -1.1%
A8: Business and Industrial Process | B8: -0.1 | C8: -1.1%
A9: Waste Management | B9: -0.1 | C9: -4.9%
A10: Public Sector Buildings | B10: 0.0 | C10: 1.9%
A11: International aviation and shipping | B11: 0.1 | C11: 7.0%
A12: Development | B12: 0.2 | C12: 8.1%
A13: Transport (excluding international aviation and shipping) | B13: 0.2 | C13: 1.6%
A14: Residential | B14: 0.2 | C14: 3.3%
A15: Forestry | B15: 0.2 | C15: -1.8%

Sheet Chart B7 data
A1: Mean air temperature by month in Scotland, 2015 and 2016. Values in °C
A4: Year | B4: JAN | C4: FEB | D4: MAR | E4: APR | F4: MAY | G4: JUN | H4: JUL | I4: AUG | J4: SEP | K4: OCT | L4: NOV | M4: DEC | N4: WIN | O4: SPR | P4: SUM | Q4: AUT | R4: ANNUAL
A5: 2015 | B5: 2.5 | C5: 2.9 | D5: 4.4 | E5: 6.3 | F5: 7.6 | G5: 10.6 | H5: 12.2 | I5: 12.9 | J5: 10.8 | K5: 8.7 | L5: 6.2 | M5: 5.4 | N5: 2.9 | O5: 6.1 | P5: 11.9 | Q5: 8.6 | R5: 7.6 | S5: Difference between 2016 and 2015 | T5: =R5-R6 -> -0.3
A6: 2016 | B6: 3.1 | C6: 2.2 | D6: 4.6 | E6: 5.1 | F6: 9.8 | G6: 12.3 | H6: 13.1 | I6: 13.3 | J6: 12.7 | K6: 8.4 | L6: 3.4 | M6: 5.6 | N6: 3.6 | O6: 6.5 | P6: 12.9 | Q6: 8.2 | R6: 7.8
A7: 1981-2010 average | B7: 2.72 | C7: 2.77 | D7: 4.17 | E7: 6.17 | F7: 8.90 | G7: 11.37 | H7: 13.34 | I7: 13.10 | J7: 10.96 | K7: 7.97 | L7: 5.04 | M7: 2.85 | N7: 2.84 | O7: 6.42 | P7: 12.61 | Q7: 7.99 | R7: 7.47 | S7: Difference between 2016 and 1981-2010 | T7: =R6-R7 -> 0.4
A9: Source: Met Office
A10: http://www.metoffice.gov.uk/pub/data/weather/uk/climate/datasets/Tmean/date/Scotland.txt
A13: Scotland Mean Temperature (Degrees C)
A14: Allowances have been made for topographic, coastal and urban effects where relationships are found to exist.
A15: Seasons: Winter=Dec-Feb, Spring=Mar-May, Summer=June-Aug, Autumn=Sept-Nov. (Winter: Year refers to Jan/Feb).
A16: Monthly values are ranked and displayed to 1 dp and seasonal/annual values to 2 dp. Where values are equal, rankings are based in order of year descending.
A20: Data obtained May 2017

Sheet Chart B8 data
A1: Scottish Greenhouse Gases, by gas, Baseline Period 1990 to 2016. Values in MtCO2e
B3: Baseline Period | C3: 1990 | D3: 1995 | E3: 1998 | F3: 1999 | G3: 2000 | H3: 2001 | I3: 2002 | J3: 2003 | K3: 2004 | L3: 2005 | M3: 2006 | N3: 2007 | O3: 2008 | P3: 2009 | Q3: 2010 | R3: 2011 | S3: 2012 | T3: 2013 | U3: 2014 | V3: 2015 | W3: 2016 | X3: Change from 1990 to 2016 (in MtCO2e) | Y3: % Change from 1990 to 2016 | Z3: % Share of Greenhouse Gases 2016
A4: Total Greenhouse Gases | B4: 75.7 | C4: 75.6 | D4: 75.6 | E4: 74.2 | F4: 70.9 | G4: 72.0 | H4: 71.3 | I4: 67.0 | J4: 66.6 | K4: 64.1 | L4: 62.1 | M4: 64.3 | N4: 59.9 | O4: 58.6 | P4: 54.2 | Q4: 55.8 | R4: 49.2 | S4: 51.5 | T4: 48.4 | U4: 44.4 | V4: 43.0 | W4: 38.6 | X4: =W4-C4 -> -37.0 | Y4: =(W4-C4)/C4 -> -49.0% | Z4: =W4/W$4 -> 100.0%
A5: Carbon dioxide (CO2) | B5: 57.2 | C5: 57.2 | D5: 57.4 | E5: 56.1 | F5: 53.6 | G5: 55.0 | H5: 54.7 | I5: 51.0 | J5: 50.9 | K5: 49.1 | L5: 47.5 | M5: 50.3 | N5: 46.3 | O5: 45.5 | P5: 41.4 | Q5: 43.2 | R5: 36.9 | S5: 39.5 | T5: 37.2 | U5: 33.0 | V5: 31.4 | W5: 27.2 | X5: =W5-C5 -> -30.0 | Y5: =(W5-C5)/C5 -> -52.4% | Z5: =W5/W$4 -> 70.5%
A6: Methane (CH4) | B6: 13.5 | C6: 13.5 | D6: 13.3 | E6: 12.9 | F6: 12.2 | G6: 11.9 | H6: 11.4 | I6: 10.8 | J6: 10.6 | K6: 10.0 | L6: 9.6 | M6: 9.0 | N6: 8.7 | O6: 8.3 | P6: 7.8 | Q6: 7.6 | R6: 7.5 | S6: 7.1 | T6: 6.3 | U6: 6.3 | V6: 6.6 | W6: 6.5 | X6: =W6-C6 -> -7.0 | Y6: =(W6-C6)/C6 -> -52.1% | Z6: =W6/W$4 -> 16.7%
A7: Nitrous oxide (N2O) | B7: 4.6 | C7: 4.6 | D7: 4.4 | E7: 4.4 | F7: 4.3 | G7: 4.2 | H7: 4.2 | I7: 4.1 | J7: 4.0 | K7: 3.9 | L7: 3.8 | M7: 3.7 | N7: 3.6 | O7: 3.5 | P7: 3.5 | Q7: 3.5 | R7: 3.4 | S7: 3.5 | T7: 3.5 | U7: 3.5 | V7: 3.4 | W7: 3.4 | X7: -1.2 | Y7: -26.3% | Z7: 8.8%
A8: * F gases | B8: =SUM(B9:B12) -> 0.3 | C8: =SUM(C9:C12) -> 0.2 | D8: 0.3 | E8: 0.6 | F8: 0.6 | G8: 0.7 | H8: 0.8 | I8: 0.9 | J8: 1.0 | K8: 1.1 | L8: 1.2 | M8: 1.3 | N8: 1.3 | O8: 1.3 | P8: 1.4 | Q8: 1.4 | R8: 1.3 | S8: 1.4 | T8: 1.4 | U8: 1.5 | V8: 1.4 | W8: =SUM(W9:W12) -> 1.4 | X8: 1.2 | Y8: 651.3% | Z8: 3.6%
A9: of which HFCs | B9: 0.1 | C9: 0.0 | D9: 0.1 | E9: 0.4 | F9: 0.4 | G9: 0.5 | H9: 0.6 | I9: 0.7 | J9: 0.8 | K9: 0.9 | L9: 1.0 | M9: 1.1 | N9: 1.2 | O9: 1.2 | P9: 1.3 | Q9: 1.3 | R9: 1.2 | S9: 1.2 | T9: 1.3 | U9: 1.3 | V9: 1.3 | W9: 1.2 | X9: 1.2 | Y9: 57935.9% | Z9: 3.2%
A10: PFCs | B10: 0.1 | C10: 0.1 | D10: 0.1 | E10: 0.1 | F10: 0.2 | G10: 0.2 | H10: 0.1 | I10: 0.1 | J10: 0.1 | K10: 0.1 | L10: 0.1 | M10: 0.1 | N10: 0.1 | O10: 0.1 | P10: 0.1 | Q10: 0.1 | R10: 0.1 | S10: 0.1 | T10: 0.1 | U10: 0.1 | V10: 0.1 | W10: 0.1 | X10: -0.0 | Y10: -3.7% | Z10: 0.3%
A11: SF6 | B11: 0.0 | C11: 0.0 | D11: 0.0 | E11: 0.0 | F11: 0.1 | G11: 0.1 | H11: 0.1 | I11: 0.1 | J11: 0.1 | K11: 0.1 | L11: 0.1 | M11: 0.0 | N11: 0.0 | O11: 0.0 | P11: 0.0 | Q11: 0.0 | R11: 0.0 | S11: 0.0 | T11: 0.0 | U11: 0.0 | V11: 0.0 | W11: 0.0 | X11: -0.0 | Y11: -23.3% | Z11: 0.1%
A12: NF3 | B12: 0.0 | C12: 0.0 | D12: 0.0 | E12: 0.0 | F12: 0.0 | G12: 0.0 | H12: 0.0 | I12: 0.0 | J12: 0.0 | K12: 0.0 | L12: 0.0 | M12: 0.0 | N12: 0.0 | O12: 0.0 | P12: 0.0 | Q12: 0.0 | R12: 0.0 | S12: 0.0 | T12: 0.0 | U12: 0.0 | V12: 0.0 | W12: 0.0 | X12: 0.0 | Y12: 66.0% | Z12: 0.0%
A14: *HFCs are hydrofluorocarbons
A15: PFCs are perfluorocarbons
A16: SF6 is sulphur hexafluoride
A17: NF3 is nitrogen trifluoride

Sheet Chart B9 data
A1: Carbon dioxide (CO2) emissions - by Scottish Government sector, Baseline Period, 1990 to 2016. Values in MtCO2e
B3: Baseline Period | C3: 1990 | D3: 1991 | E3: 1992 | F3: 1993 | G3: 1994 | H3: 1995 | I3: 1996 | J3: 1997 | K3: 1998 | L3: 1999 | M3: 2000 | N3: 2001 | O3: 2002 | P3: 2003 | Q3: 2004 | R3: 2005 | S3: 2006 | T3: 2007 | U3: 2008 | V3: 2009 | W3: 2010 | X3: 2011 | Y3: 2012 | Z3: 2013 | AA3: 2014 | AB3: 2015 | AC3: 2016
A4: CO2 | B4: 57.4 | C4: 57.4 | H4: 57.6 | K4: 56.3 | L4: 53.8 | M4: 55.1 | N4: 55.0 | O4: 51.2 | P4: 51.0 | Q4: 49.2 | R4: 47.5 | S4: 50.4 | T4: 46.4 | U4: 45.5 | V4: 41.4 | W4: 43.2 | X4: 36.9 | Y4: 39.5 | Z4: 37.2 | AA4: 33.0 | AB4: 31.5 | AC4: 27.3
A5: Energy Supply | B5: 20.6 | C5: 20.6 | H5: 24.8 | K5: 24.2 | L5: 22.2 | M5: 25.1 | N5: 24.3 | O5: 22.7 | P5: 23.0 | Q5: 21.2 | R5: 20.0 | S5: 23.9 | T5: 20.7 | U5: 19.4 | V5: 18.0 | W5: 20.2 | X5: 16.4 | Y5: 16.8 | Z5: 15.4 | AA5: 13.3 | AB5: 11.7 | AC5: 6.7
A6: Transport (including international aviation and shipping) | B6: =B7+B8 -> 14.5 | C6: =C7+C8 -> 14.5 | H6: =H7+H8 -> 15.4 | K6: =K7+K8 -> 16.1 | L6: 16.0 | M6: 15.3 | N6: 15.2 | O6: 15.5 | P6: 15.3 | Q6: 15.5 | R6: 15.6 | S6: 15.6 | T6: 15.9 | U6: 15.4 | V6: 14.7 | W6: 14.2 | X6: 13.8 | Y6: 13.5 | Z6: 13.4 | AA6: 13.6 | AB6: 13.9 | AC6: 14.2
A7: Transport (excluding international aviation and shipping) | B7: 13.2 | C7: 13.2 | H7: 13.9 | K7: 14.4 | L7: 14.5 | M7: 13.9 | N7: 13.7 | O7: 14.2 | P7: 14.0 | Q7: 14.0 | R7: 14.1 | S7: 14.0 | T7: 14.2 | U7: 13.6 | V7: 13.1 | W7: 12.8 | X7: 12.2 | Y7: 12.1 | Z7: 11.9 | AA7: 12.0 | AB7: 12.2 | AC7: 12.4
A8: International Aviation and Shipping | B8: 1.3 | C8: 1.3 | H8: 1.5 | K8: 1.7 | L8: 1.5 | M8: 1.4 | N8: 1.5 | O8: 1.4 | P8: 1.3 | Q8: 1.5 | R8: 1.6 | S8: 1.7 | T8: 1.7 | U8: 1.8 | V8: 1.6 | W8: 1.4 | X8: 1.5 | Y8: 1.4 | Z8: 1.5 | AA8: 1.6 | AB8: 1.7 | AC8: 1.8
A9: Business and Industrial Process | B9: 13.7 | C9: 13.7 | H9: 10.8 | K9: 10.6 | L9: 10.7 | M9: 10.6 | N9: 10.8 | O9: 9.9 | P9: 10.0 | Q9: 9.9 | R9: 9.4 | S9: 9.1 | T9: 8.7 | U9: 9.1 | V9: 7.9 | W9: 8.0 | X9: 7.8 | Y9: 7.6 | Z9: 7.8 | AA9: 7.2 | AB9: 7.2 | AC9: 7.2
A10: Residential | B10: 7.7 | C10: 7.7 | H10: 7.6 | K10: 7.8 | L10: 7.7 | M10: 7.5 | N10: 8.0 | O10: 7.4 | P10: 7.3 | Q10: 7.5 | R10: 7.4 | S10: 7.2 | T10: 7.0 | U10: 7.2 | V10: 6.9 | W10: 7.8 | X10: 6.2 | Y10: 6.8 | Z10: 6.8 | AA10: 5.7 | AB10: 5.9 | AC10: 6.1
A11: Agriculture and Related Land Use | B11: 5.3 | C11: 5.3 | H11: 5.5 | K11: 5.2 | L11: 5.2 | M11: 5.2 | N11: 5.1 | O11: 4.8 | P11: 4.9 | Q11: 4.5 | R11: 4.4 | S11: 4.2 | T11: 4.2 | U11: 3.9 | V11: 3.8 | W11: 3.7 | X11: 3.4 | Y11: 3.2 | Z11: 3.3 | AA11: 3.2 | AB11: 3.0 | AC11: 2.9
A12: Other sources * | B12: =B13+B14+B15 -> 3.5 | C12: =C13+C14+C15 -> 3.5 | H12: =H13+H14+H15 -> 3.6 | K12: =K13+K14+K15 -> 3.5 | L12: 3.5 | M12: 3.4 | N12: 3.4 | O12: 3.2 | P12: 3.2 | Q12: 3.4 | R12: 3.4 | S12: 3.1 | T12: 3.0 | U12: 3.1 | V12: 2.9 | W12: 3.1 | X12: 2.8 | Y12: 2.9 | Z12: 3.0 | AA12: 2.8 | AB12: 2.8 | AC12: 3.0
A13: Public Sector Buildings | B13: 1.7 | C13: 1.7 | H13: 1.8 | K13: 1.8 | L13: 1.7 | M13: 1.6 | N13: 1.7 | O13: 1.4 | P13: 1.4 | Q13: 1.5 | R13: 1.5 | S13: 1.4 | T13: 1.3 | U13: 1.3 | V13: 1.2 | W13: 1.3 | X13: 1.1 | Y13: 1.2 | Z13: 1.2 | AA13: 1.0 | AB13: 1.1 | AC13: 1.1
A14: Waste Management | B14: 0.0 | C14: 0.0 | H14: 0.0 | K14: 0.0 | L14: 0.0 | M14: 0.0 | N14: 0.0 | O14: 0.0 | P14: 0.0 | Q14: 0.0 | R14: 0.0 | S14: 0.0 | T14: 0.0 | U14: 0.0 | V14: 0.0 | W14: 0.0 | X14: 0.0 | Y14: 0.0 | Z14: 0.0 | AA14: 0.0 | AB14: 0.0 | AC14: 0.0
A15: Development | B15: 1.7 | C15: 1.7 | H15: 1.7 | K15: 1.7 | L15: 1.7 | M15: 1.7 | N15: 1.7 | O15: 1.7 | P15: 1.8 | Q15: 1.9 | R15: 1.8 | S15: 1.7 | T15: 1.7 | U15: 1.7 | V15: 1.7 | W15: 1.8 | X15: 1.8 | Y15: 1.7 | Z15: 1.8 | AA15: 1.7 | AB15: 1.7 | AC15: 1.9
A16: Forestry | B16: -8.0 | C16: -8.0 | H16: -10.1 | K16: -11.1 | L16: -11.6 | M16: -12.0 | N16: -11.9 | O16: -12.2 | P16: -12.7 | Q16: -12.8 | R16: -12.7 | S16: -12.8 | T16: -13.2 | U16: -12.5 | V16: -12.8 | W16: -13.8 | X16: -13.6 | Y16: -11.4 | Z16: -12.5 | AA16: -12.8 | AB16: -13.0 | AC16: -12.7
A72: Grand Total | B72: 75687.84906 | C72: 75595.83089 | D72: 75552.67193 | E72: 74152.35157 | F72: 70903.28943 | G72: 71990.46284 | H72: 71312.10534 | I72: 67026.75087 | J72: 66615.94879 | K72: 64123.2963 | L72: 62112.2263 | M72: 64325.63724 | N72: 59945.75662 | O72: 58643.89338 | P72: 54217.46741 | Q72: 55823.19625 | R72: 49162.92195 | S72: 51456.8681 | T72: 48394.27905 | U72: 44359.47734 | V72: 43005.81593 | W72: 38574.25879 | Z72: 1342982.355

Sheet Chart B10 data
A1: Methane (CH4) emissions by Scottish Government sector, 1990 to 2016. Values in MtCO2e
B3: Baseline Period | C3: 1990 | D3: 1991 | E3: 1992 | F3: 1993 | G3: 1994 | H3: 1995 | I3: 1996 | J3: 1997 | K3: 1998 | L3: 1999 | M3: 2000 | N3: 2001 | O3: 2002 | P3: 2003 | Q3: 2004 | R3: 2005 | S3: 2006 | T3: 2007 | U3: 2008 | V3: 2009 | W3: 2010 | X3: 2011 | Y3: 2012 | Z3: 2013 | AA3: 2014 | AB3: 2015 | AC3: 2016 | AD3: % reduction 1990 to 2016
A4: CH4 | B4: 13.5 | C4: 13.5 | H4: 13.3 | K4: 12.9 | L4: 12.2 | M4: 11.9 | N4: 11.4 | O4: 10.8 | P4: 10.6 | Q4: 10.0 | R4: 9.6 | S4: 9.0 | T4: 8.7 | U4: 8.3 | V4: 7.8 | W4: 7.6 | X4: 7.5 | Y4: 7.1 | Z4: 6.3 | AA4: 6.3 | AB4: 6.6 | AC4: 6.5 | AD4: =(AC4-B4)/B4 -> -52%
A5: Waste Management | B5: 5.9 | C5: 5.9 | H5: 6.1 | K5: 6.0 | L5: 5.7 | M5: 5.6 | N5: 5.3 | O5: 5.1 | P5: 5.0 | Q5: 4.3 | R5: 3.9 | S5: 3.5 | T5: 3.1 | U5: 3.0 | V5: 2.7 | W5: 2.4 | X5: 2.3 | Y5: 1.9 | Z5: 1.3 | AA5: 1.4 | AB5: 1.6 | AC5: 1.5 | AD5: =(AC5-B5)/B5 -> -74%
A6: Agriculture and Related Land Use | B6: 5.2 | C6: 5.2 | H6: 5.1 | K6: 5.2 | L6: 5.1 | M6: 5.1 | N6: 4.8 | O6: 4.8 | P6: 4.8 | Q6: 4.9 | R6: 4.9 | S6: 4.8 | T6: 4.8 | U6: 4.6 | V6: 4.5 | W6: 4.6 | X6: 4.6 | Y6: 4.5 | Z6: 4.4 | AA6: 4.4 | AB6: 4.5 | AC6: 4.4 | AD6: -15%
A7: Energy Supply | B7: 2.0 | C7: 2.0 | H7: 1.9 | K7: 1.5 | L7: 1.1 | M7: 1.0 | N7: 1.1 | O7: 0.8 | P7: 0.6 | Q7: 0.6 | R7: 0.6 | S7: 0.6 | T7: 0.6 | U7: 0.6 | V7: 0.5 | W7: 0.5 | X7: 0.6 | Y7: 0.5 | Z7: 0.5 | AA7: 0.5 | AB7: 0.4 | AC7: 0.4 | AD7: -80%
A8: Other sources * | B8: =SUM(B9:B15) -> 0.4 | C8: =SUM(C9:C15) -> 0.4 | H8: =SUM(H9:H15) -> 0.2 | K8: =SUM(K9:K15) -> 0.2 | L8: 0.2 | M8: 0.2 | N8: 0.2 | O8: 0.2 | P8: 0.1 | Q8: 0.1 | R8: 0.1 | S8: 0.1 | T8: 0.1 | U8: 0.1 | V8: 0.1 | W8: 0.1 | X8: 0.1 | Y8: 0.1 | Z8: =SUM(Z9:Z15) -> 0.1 | AA8: =SUM(AA9:AA15) -> 0.1 | AB8: =SUM(AB9:AB15) -> 0.1 | AC8: =SUM(AC9:AC15) -> 0.1 | AD8: -71%
A9: Residential | B9: 0.2 | C9: 0.2 | H9: 0.1 | K9: 0.1 | L9: 0.1 | M9: 0.1 | N9: 0.1 | O9: 0.1 | P9: 0.1 | Q9: 0.1 | R9: 0.1 | S9: 0.1 | T9: 0.1 | U9: 0.1 | V9: 0.1 | W9: 0.1 | X9: 0.1 | Y9: 0.1 | Z9: 0.1 | AA9: 0.1 | AB9: 0.1 | AC9: 0.1 | AD9: -69%
A10: Transport (excluding international aviation and shipping) | B10: 0.1 | C10: 0.1 | H10: 0.1 | K10: 0.1 | L10: 0.1 | M10: 0.0 | N10: 0.0 | O10: 0.0 | P10: 0.0 | Q10: 0.0 | R10: 0.0 | S10: 0.0 | T10: 0.0 | U10: 0.0 | V10: 0.0 | W10: 0.0 | X10: 0.0 | Y10: 0.0 | Z10: 0.0 | AA10: 0.0 | AB10: 0.0 | AC10: 0.0 | AD10: -91%
A11: International Aviation and Shipping | B11: 0.0 | C11: 0.0 | H11: 0.0 | K11: 0.0 | L11: 0.0 | M11: 0.0 | N11: 0.0 | O11: 0.0 | P11: 0.0 | Q11: 0.0 | R11: 0.0 | S11: 0.0 | T11: 0.0 | U11: 0.0 | V11: 0.0 | W11: 0.0 | X11: 0.0 | Y11: 0.0 | Z11: 0.0 | AA11: 0.0 | AB11: 0.0 | AC11: 0.0 | AD11: -80%
A12: Business and Industrial process | B12: 0.0 | C12: 0.0 | H12: 0.0 | K12: 0.0 | L12: 0.0 | M12: 0.0 | N12: 0.0 | O12: 0.0 | P12: 0.0 | Q12: 0.0 | R12: 0.0 | S12: 0.0 | T12: 0.0 | U12: 0.0 | V12: 0.0 | W12: 0.0 | X12: 0.0 | Y12: 0.0 | Z12: 0.0 | AA12: 0.0 | AB12: 0.0 | AC12: 0.0 | AD12: -42%
A13: Public Sector Buildings | B13: 0.0 | C13: 0.0 | H13: 0.0 | K13: 0.0 | L13: 0.0 | M13: 0.0 | N13: 0.0 | O13: 0.0 | P13: 0.0 | Q13: 0.0 | R13: 0.0 | S13: 0.0 | T13: 0.0 | U13: 0.0 | V13: 0.0 | W13: 0.0 | X13: 0.0 | Y13: 0.0 | Z13: 0.0 | AA13: 0.0 | AB13: 0.0 | AC13: 0.0 | AD13: -46%
A14: Development | B14: 0.0 | C14: 0.0 | H14: 0.0 | K14: 0.0 | L14: 0.0 | M14: 0.0 | N14: 0.0 | O14: 0.0 | P14: 0.0 | Q14: 0.0 | R14: 0.0 | S14: 0.0 | T14: 0.0 | U14: 0.0 | V14: 0.0 | W14: 0.0 | X14: 0.0 | Y14: 0.0 | Z14: 0.0 | AA14: 0.0 | AB14: 0.0 | AC14: 0.0 | AD14: =(AC14-B14)/B14 -> 1314%
A15: Forestry | B15: 0.0 | C15: 0.0 | H15: 0.0 | K15: 0.0 | L15: 0.0 | M15: 0.0 | N15: 0.0 | O15: 0.0 | P15: 0.0 | Q15: 0.0 | R15: 0.0 | S15: 0.0 | T15: 0.0 | U15: 0.0 | V15: 0.0 | W15: 0.0 | X15: 0.0 | Y15: 0.0 | Z15: 0.0 | AA15: 0.0 | AB15: 0.0 | AC15: 0.0 | AD15: -100%

Sheet Chart B11 data
A1: Nitrous oxide (N2O) emissions by Scottish Government sector, 1990 to 2016. Values in MtCO2e
B3: Baseline Period | C3: 1990 | D3: 1991 | E3: 1992 | F3: 1993 | G3: 1994 | H3: 1995 | I3: 1996 | J3: 1997 | K3: 1998 | L3: 1999 | M3: 2000 | N3: 2001 | O3: 2002 | P3: 2003 | Q3: 2004 | R3: 2005 | S3: 2006 | T3: 2007 | U3: 2008 | V3: 2009 | W3: 2010 | X3: 2011 | Y3: 2012 | Z3: 2013 | AA3: 2014 | AB3: 2015 | AC3: 2016
A4: N2O | B4: 4.6 | C4: 4.6 | H4: 4.4 | K4: 4.4 | L4: 4.3 | M4: 4.2 | N4: 4.2 | O4: 4.1 | P4: 4.0 | Q4: 3.9 | R4: 3.8 | S4: 3.7 | T4: 3.6 | U4: 3.5 | V4: 3.5 | W4: 3.5 | X4: 3.4 | Y4: 3.5 | Z4: 3.5 | AA4: 3.5 | AB4: 3.4 | AC4: 3.4
A5: Agriculture and Related Land Use | B5: 3.4 | C5: 3.4 | H5: 3.5 | K5: 3.6 | L5: 3.5 | M5: 3.3 | N5: 3.4 | O5: 3.3 | P5: 3.3 | Q5: 3.1 | R5: 3.0 | S5: 2.9 | T5: 2.9 | U5: 2.8 | V5: 2.8 | W5: 2.8 | X5: 2.7 | Y5: 2.8 | Z5: 2.8 | AA5: 2.8 | AB5: 2.7 | AC5: 2.7
A6: Business and Industrial Process | B6: 0.5 | C6: 0.5 | H6: 0.1 | K6: 0.1 | L6: 0.1 | M6: 0.1 | N6: 0.1 | O6: 0.1 | P6: 0.1 | Q6: 0.1 | R6: 0.1 | S6: 0.1 | T6: 0.1 | U6: 0.1 | V6: 0.1 | W6: 0.1 | X6: 0.1 | Y6: 0.1 | Z6: 0.1 | AA6: 0.1 | AB6: 0.1 | AC6: 0.1
A7: Other sources * | B7: =SUM(B8:B15) -> 0.7 | C7: =SUM(C8:C15) -> 0.7 | H7: =SUM(H8:H15) -> 0.7 | K7: =SUM(K8:K15) -> 0.7 | L7: 0.7 | M7: 0.7 | N7: 0.7 | O7: 0.7 | P7: 0.7 | Q7: 0.6 | R7: 0.6 | S7: 0.6 | T7: 0.6 | U7: 0.6 | V7: 0.6 | W7: 0.6 | X7: 0.6 | Y7: 0.6 | Z7: =SUM(Z8:Z15) -> 0.6 | AA7: =SUM(AA8:AA15) -> 0.6 | AB7: =SUM(AB8:AB15) -> 0.6 | AC7: =SUM(AC8:AC15) -> 0.6
A8: Energy Supply | B8: 0.1 | C8: 0.1 | H8: 0.1 | K8: 0.1 | L8: 0.1 | M8: 0.1 | N8: 0.1 | O8: 0.1 | P8: 0.1 | Q8: 0.1 | R8: 0.1 | S8: 0.1 | T8: 0.1 | U8: 0.1 | V8: 0.1 | W8: 0.1 | X8: 0.1 | Y8: 0.1 | Z8: 0.1 | AA8: 0.1 | AB8: 0.1 | AC8: 0.1
A9: Transport (excluding international aviation and shipping) | B9: 0.2 | C9: 0.2 | H9: 0.2 | K9: 0.2 | L9: 0.2 | M9: 0.2 | N9: 0.2 | O9: 0.2 | P9: 0.2 | Q9: 0.2 | R9: 0.2 | S9: 0.1 | T9: 0.1 | U9: 0.1 | V9: 0.1 | W9: 0.1 | X9: 0.1 | Y9: 0.1 | Z9: 0.1 | AA9: 0.1 | AB9: 0.1 | AC9: 0.1
A10: International Aviation and Shipping | B10: 0.0 | C10: 0.0 | H10: 0.0 | K10: 0.0 | L10: 0.0 | M10: 0.0 | N10: 0.0 | O10: 0.0 | P10: 0.0 | Q10: 0.0 | R10: 0.0 | S10: 0.0 | T10: 0.0 | U10: 0.0 | V10: 0.0 | W10: 0.0 | X10: 0.0 | Y10: 0.0 | Z10: 0.0 | AA10: 0.0 | AB10: 0.0 | AC10: 0.0
A11: Waste Management | B11: 0.1 | C11: 0.1 | H11: 0.1 | K11: 0.1 | L11: 0.1 | M11: 0.1 | N11: 0.1 | O11: 0.1 | P11: 0.1 | Q11: 0.1 | R11: 0.1 | S11: 0.1 | T11: 0.1 | U11: 0.1 | V11: 0.1 | W11: 0.1 | X11: 0.1 | Y11: 0.1 | Z11: 0.1 | AA11: 0.1 | AB11: 0.1 | AC11: 0.1
A12: Residential | B12: 0.0 | C12: 0.0 | H12: 0.0 | K12: 0.0 | L12: 0.0 | M12: 0.0 | N12: 0.0 | O12: 0.0 | P12: 0.0 | Q12: 0.0 | R12: 0.0 | S12: 0.0 | T12: 0.0 | U12: 0.0 | V12: 0.0 | W12: 0.0 | X12: 0.0 | Y12: 0.0 | Z12: 0.0 | AA12: 0.0 | AB12: 0.0 | AC12: 0.0
A13: Public Sector Buildings | B13: 0.0 | C13: 0.0 | H13: 0.0 | K13: 0.0 | L13: 0.0 | M13: 0.0 | N13: 0.0 | O13: 0.0 | P13: 0.0 | Q13: 0.0 | R13: 0.0 | S13: 0.0 | T13: 0.0 | U13: 0.0 | V13: 0.0 | W13: 0.0 | X13: 0.0 | Y13: 0.0 | Z13: 0.0 | AA13: 0.0 | AB13: 0.0 | AC13: 0.0
A14: Development | B14: 0.1 | C14: 0.1 | H14: 0.1 | K14: 0.1 | L14: 0.1 | M14: 0.1 | N14: 0.1 | O14: 0.1 | P14: 0.1 | Q14: 0.1 | R14: 0.1 | S14: 0.1 | T14: 0.1 | U14: 0.1 | V14: 0.1 | W14: 0.1 | X14: 0.1 | Y14: 0.1 | Z14: 0.1 | AA14: 0.1 | AB14: 0.1 | AC14: 0.1
A15: Forestry | B15: 0.1 | C15: 0.1 | H15: 0.1 | K15: 0.1 | L15: 0.1 | M15: 0.1 | N15: 0.1 | O15: 0.1 | P15: 0.1 | Q15: 0.1 | R15: 0.1 | S15: 0.1 | T15: 0.1 | U15: 0.1 | V15: 0.1 | W15: 0.1 | X15: 0.1 | Y15: 0.1 | Z15: 0.1 | AA15: 0.1 | AB15: 0.1 | AC15: 0.1

Sheet Chart B12 data
A1: F gases by Scottish Government sector, 1990 to 2016. Values in MtCO2e
B3: Baseline Period | C3: 1990 | D3: 1991 | E3: 1992 | F3: 1993 | G3: 1994 | H3: 1995 | I3: 1996 | J3: 1997 | K3: 1998 | L3: 1999 | M3: 2000 | N3: 2001 | O3: 2002 | P3: 2003 | Q3: 2004 | R3: 2005 | S3: 2006 | T3: 2007 | U3: 2008 | V3: 2009 | W3: 2010 | X3: 2011 | Y3: 2012 | Z3: 2013 | AA3: 2014 | AB3: 2015 | AC3: 2016
A4: HFCs | B4: 0.1 | C4: 0.0 | H4: 0.1 | K4: 0.4 | L4: 0.4 | M4: 0.5 | N4: 0.6 | O4: 0.7 | P4: 0.8 | Q4: 0.9 | R4: 1.0 | S4: 1.1 | T4: 1.2 | U4: 1.2 | V4: 1.3 | W4: 1.3 | X4: 1.2 | Y4: 1.2 | Z4: 1.3 | AA4: 1.3 | AB4: 1.3 | AC4: 1.2
A5: Business and Industrial process | B5: 0.1 | C5: 0.0 | H5: 0.1 | K5: 0.2 | L5: 0.3 | M5: 0.4 | N5: 0.5 | O5: 0.5 | P5: 0.6 | Q5: 0.7 | R5: 0.8 | S5: 0.9 | T5: 1.0 | U5: 1.0 | V5: 1.1 | W5: 1.2 | X5: 1.0 | Y5: 1.1 | Z5: 1.1 | AA5: 1.1 | AB5: 1.1 | AC5: 1.1
A6: Residential | B6: 0.1 | C6: 0.0 | H6: 0.1 | K6: 0.18 | L6: 0.15 | M6: 0.17 | N6: 0.18 | O6: 0.16 | P6: 0.18 | Q6: 0.18 | R6: 0.20 | S6: 0.20 | T6: 0.18 | U6: 0.18 | V6: 0.18 | W6: 0.16 | X6: 0.16 | Y6: 0.16 | Z6: 0.15 | AA6: 0.15 | AB6: 0.15 | AC6: 0.1
A7: PFCs | B7: 0.1 | C7: 0.1 | H7: 0.1 | K7: 0.1 | L7: 0.2 | M7: 0.2 | N7: 0.1 | O7: 0.1 | P7: 0.1 | Q7: 0.1 | R7: 0.1 | S7: 0.1 | T7: 0.1 | U7: 0.1 | V7: 0.1 | W7: 0.1 | X7: 0.1 | Y7: 0.1 | Z7: 0.1 | AA7: 0.1 | AB7: 0.1 | AC7: 0.1
A8: Business and Industrial process | B8: 0.1 | C8: 0.1 | H8: 0.1 | K8: 0.1 | L8: 0.2 | M8: 0.2 | N8: 0.1 | O8: 0.1 | P8: 0.1 | Q8: 0.1 | R8: 0.1 | S8: 0.1 | T8: 0.1 | U8: 0.1 | V8: 0.1 | W8: 0.1 | X8: 0.1 | Y8: 0.1 | Z8: 0.1 | AA8: 0.1 | AB8: 0.1 | AC8: 0.1
A9: SF6 | B9: 0.0 | C9: 0.0 | H9: 0.0 | K9: 0.0 | L9: 0.1 | M9: 0.1 | N9: 0.1 | O9: 0.1 | P9: 0.1 | Q9: 0.1 | R9: 0.1 | S9: 0.0 | T9: 0.0 | U9: 0.0 | V9: 0.0 | W9: 0.0 | X9: 0.0 | Y9: 0.0 | Z9: 0.0 | AA9: 0.0 | AB9: 0.0 | AC9: 0.0
A10: Business and Industrial process | B10: 0.0 | C10: 0.0 | H10: 0.0 | K10: 0.0 | L10: 0.1 | M10: 0.1 | N10: 0.1 | O10: 0.1 | P10: 0.1 | Q10: 0.1 | R10: 0.1 | S10: 0.0 | T10: 0.0 | U10: 0.0 | V10: 0.0 | W10: 0.0 | X10: 0.0 | Y10: 0.0 | Z10: 0.0 | AA10: 0.0 | AB10: 0.0 | AC10: 0.0
A11: NF3 | B11: 0.0 | C11: 0.0 | H11: 0.0 | K11: 0.0 | L11: 0.0 | M11: 0.0 | N11: 0.0 | O11: 0.0 | P11: 0.0 | Q11: 0.0 | R11: 0.0 | S11: 0.0 | T11: 0.0 | U11: 0.0 | V11: 0.0 | W11: 0.0 | X11: 0.0 | Y11: 0.0 | Z11: 0.0 | AA11: 0.0 | AB11: 0.0 | AC11: 0.0
A12: Business and Industrial process | B12: 0.0 | C12: 0.0 | H12: 0.0 | K12: 0.0 | L12: 0.0 | M12: 0.0 | N12: 0.0 | O12: 0.0 | P12: 0.0 | Q12: 0.0 | R12: 0.0 | S12: 0.0 | T12: 0.0 | U12: 0.0 | V12: 0.0 | W12: 0.0 | X12: 0.0 | Y12: 0.0 | Z12: 0.0 | AA12: 0.0 | AB12: 0.0 | AC12: 0.0
A16: F gases Total | B16: =SUM(B4+B7+B9+B11) -> 0.3 | C16: =SUM(C4+C7+C9+C11) -> 0.2 | D16: 0.0 | E16: 0.0 | F16: 0.0 | G16: 0.0 | H16: 0.3 | I16: 0.0 | J16: 0.0 | K16: 0.6 | L16: 0.6 | M16: 0.7 | N16: 0.8 | O16: 0.9 | P16: 1.0 | Q16: 1.1 | R16: 1.2 | S16: 1.3 | T16: 1.3 | U16: 1.3 | V16: 1.4 | W16: 1.4 | X16: 1.3 | Y16: 1.4 | Z16: 1.4 | AA16: 1.5 | AB16: 1.4 | AC16: 1.4
A17: Business and Industrial process | B17: =B5+B8+B10+B12 -> 0.2 | C17: =C5+C8+C10+C12 -> 0.2 | H17: =H5+H8+H10+H12 -> 0.2 | K17: =K5+K8+K10+K12 -> 0.4 | L17: =L5+L8+L10+L12 -> 0.5 | M17: 0.6 | N17: 0.6 | O17: 0.7 | P17: 0.8 | Q17: 0.9 | R17: 1.0 | S17: 1.1 | T17: 1.1 | U17: 1.1 | V17: 1.2 | W17: 1.3 | X17: 1.2 | Y17: 1.2 | Z17: 1.3 | AA17: 1.3 | AB17: 1.3 | AC17: 1.3
A18: Residential | B18: =B6 -> 0.1 | C18: =C6 -> 0.0 | H18: =H6 -> 0.1 | K18: =K6 -> 0.2 | L18: =L6 -> 0.1 | M18: 0.2 | N18: 0.2 | O18: 0.2 | P18: 0.2 | Q18: 0.2 | R18: 0.2 | S18: 0.2 | T18: 0.2 | U18: 0.2 | V18: 0.2 | W18: 0.2 | X18: 0.2 | Y18: 0.2 | Z18: 0.2 | AA18: 0.2 | AB18: 0.1 | AC18: 0.1
A20: Check totals correct? | B20: =IF(B17+B18=B16,"Yes","No") -> Yes | C20: =IF(C17+C18=C16,"Yes","No") -> Yes | H20: =IF(H17+H18=H16,"Yes","No") -> Yes | K20: =IF(K17+K18=K16,"Yes","No") -> Yes | L20: =IF(L17+L18=L16,"Yes","No") -> Yes | M20: Yes | N20: Yes | O20: Yes | P20: Yes | Q20: Yes | R20: Yes | S20: Yes | T20: Yes | U20: Yes | V20: Yes | W20: Yes | X20: Yes | Y20: Yes | Z20: Yes | AA20: Yes | AB20: Yes | AC20: Yes

Sheet Chart C1 data
A1: Estimate of Traded Emissions Surrendered in the EU Emissions Trading System (EU ETS) and Non-Traded Greenhouse Gas Emissions by Scottish Government Sector, 2016. Values in MtCO2e
B4: Traded Greenhouse Gases | C4: Non-Traded Greenhouse Gases | D4: Total | E4: % of emissions that are traded - 2016 | F4: % of traded emissions - 2016 | G4: % of non-traded emissions - 2016
A5: Net Scottish Greenhouse Gases | B5: ='Chart C2 data'!B6 -> 12.2 | C5: ='Chart C2 data'!B5 -> 26.4 | D5: ='Chart B1 data'!B4 -> 38.6 | E5: =B5/D5 -> 31.5% | F5: =B5/B$5 -> 100.0% | G5: =C5/C$5 -> 100.0%
A6: Energy Supply | B6: =B21 -> 6.5 | C6: =D6-B6 -> 0.7 | D6: ='Chart B1 data'!B8 -> 7.2 | E6: =B6/D6 -> 90.4% | F6: =B6/B$5 -> 53.2% | G6: =C6/C$5 -> 2.6%
A7: Transport (including international aviation and shipping) | B7: =B31 -> 1.9 | C7: =D7-B7 -> 12.5 | D7: ='Chart B1 data'!B5 -> 14.4 | E7: =B7/D7 -> 13.2% | F7: =B7/B$5 -> 15.6% | G7: =C7/C$5 -> 47.3%
A8: Agriculture and Related Land Use | C8: =D8-B8 -> 10.0 | D8: ='Chart B1 data'!B6 -> 10.0 | E8: =B8/D8 -> 0.0% | F8: =B8/B$5 -> 0.0% | G8: 38.1%
A9: Business and Industrial Process | B9: =B20 -> 3.6 | C9: =D9-B9 -> 4.9 | D9: ='Chart B1 data'!B7 -> 8.6 | E9: 42.2% | F9: 29.8% | G9: 18.7%
A10: Residential | C10: =D10-B10 -> 6.3 | D10: ='Chart B1 data'!B9 -> 6.3 | E10: 0.0% | F10: =B10/B$5 -> 0.0% | G10: 23.9%
A11: Waste Management | C11: 1.6 | D11: ='Chart B1 data'!B11 -> 1.6 | E11: 0.0% | F11: 0.0% | G11: 6.2%
A12: Development | C12: 2.0 | D12: ='Chart B1 data'!B10 -> 2.0 | E12: 0.0% | F12: 0.0% | G12: 7.7%
A13: Public Sector Buildings | B13: =B22 -> 0.2 | C13: 0.9 | D13: ='Chart B1 data'!B12 -> 1.1 | E13: 15.6% | F13: 1.4% | G13: 3.5%
A14: Forestry | C14: -12.7 | D14: ='Chart B1 data'!B13 -> -12.7 | E14: 0.0% | F14: 0.0% | G14: -48.0%
A17: Estimate of traded greenhouse gases surrendered for fixed installations by sector, 2016. Values in MtCO2e
B19: 2016 | C19: % shares
A20: Business and Industrial Process | B20: =C20*B$23 -> 3.620 | C20: =(E38+E40)/E$46 -> 35.3%
A21: Energy Supply | B21: =C21*B$23 -> 6.474 | C21: =E39/E$46 -> 63.1%
A22: Public Sector Buildings | B22: =C22*B$23 -> 0.168 | C22: =E42/E$46 -> 1.6%
A23: TOTAL SURRENDERED EMISSIONS | B23: =(B5-B31) -> 10.262 | C23: =SUM(C20:C22) -> 100.0%
A26: Estimate of traded CO2 emissions from aviation, 2016. Values in MtCO2
B28: 2016
A29: Domestic aviation - CO2 | B29: 0.478
A30: International Aviation - CO2 | B30: 1.425
A31: Total Aviation - CO2 | B31: =SUM(B29:B30) -> 1.903
A34: Data from Devolved Administrations Inventory, 1990-2016 (excluding international aviation and shipping)
A37: 2016 | B37: Agriculture | C37: 7,766 | D37: 7,766 | E37: 0 | F37: 7,766 | G37: 0.0%
B38: Business | C38: 6,604 | D38: 6,969 | E38: 2,213 | F38: 4,391 | G38: 33.5%
B39: Energy Supply | C39: 7,159 | D39: 7,159 | E39: 6,581 | F39: 578 | G39: 91.9%
B40: Industrial Process | C40: 1,966 | D40: 1,601 | E40: 1,467 | F40: 499 | G40: 74.6%
B41: Land Use Change | C41: -8,357 | D41: -8,357 | E41: 0 | F41: -8,357 | G41: 0.0%
B42: Public | C42: 1,081 | D42: 1,081 | E42: 171 | F42: 910 | G42: 15.8%
B43: Residential | C43: 6,313 | D43: 6,313 | E43: 0 | F43: 6,313 | G43: 0.0%
B44: Transport | C44: 12,579 | D44: 12,579 | E44: 0 | F44: 12,579 | G44: 0.0%
B45: Waste Management | C45: 1,645 | D45: 1,645 | E45: 0 | F45: 1,645 | G45: 0.0%
B46: 2016 Total | C46: 36,756 | D46: 36,756 | E46: 10,432 | F46: 26,324 | G46: 28.4%

Sheet Chart C2 data
A1: Calculation of Adjusted Emissions to take into account of trading in the EU Emissions Trading System, 2016. Values in MtCO2e
B3: SOURCE EMISSIONS | E3: ADJUSTED EMISSIONS
B4: STEP 1 | C4: STEP 2 | D4: STEP 3 | E4: STEP 4 | F4: Difference between EU ETS cap and EU ETS surrendered emissions for Scotland
A5: Non-traded | B5: =B7-B6 -> 26.409 | C5: =B5 -> 26.409 | D5: =B5 -> 26.409 | E5: =B5 -> 26.409
A6: Traded - fixed installations and aviation | B6: =B14 -> 12.166 | C6: =B6 -> 12.166 | D6: =B17 -> 15.072 | E6: =D6 -> 15.072
A7: Total | B7: ='A1. Headline Chart data'!AB4 -> 38.574 | C7: =B7 -> 38.574 | D7: =D5+D6 -> 41.481 | E7: =E5+E6 -> 41.481 | F7: =E7-B7 -> 2.907
A11: Traded emissions surrendered in 2016 - fixed installations | B11: =B22/1000000 -> 10.262
A12: CO2 emissions from Domestic Aviation | B12: 0.478
A13: CO2 emissions from International Aviation | B13: 1.425 | C13: =B12+B13 -> 1.903
A14: SURRENDERED EU ETS EMISSIONS - INCLUDING AVIATION | B14: =B11+B12+B13 -> 12.166
A17: EU ETS cap for 2016 (fixed installations and aviation) | B17: =B42/1000000 -> 15.072
A22: Traded emissions surrendered in 2016 - fixed installations | B22: 10,262,263
A23: CO2 emissions from Domestic Aviation | B23: =B12*1000000 -> 478,157
A24: CO2 emissions from International Aviation | B24: =B13*1000000 -> 1,425,305 | C24: =SUM(B23:B24) -> 1,903,462
A25: SURRENDERED EU ETS EMISSIONS - INCLUDING AVIATION | B25: =B22+B23+B24 -> 12,165,725
A31: Total EU-ETS cap for Scotland, 2016
A32: Component | B32: 2016 Allocation tCO2e
A33: Fixed Installations | B33: 13,707,475
A34: Auctioned allowances | B34: 7,789,520
A35: Free allocation | B35: 5,917,955
A36: New Entrant’s Reserve | B36: 0
A38: Aviation | B38: 1,365,013
A39: Domestic | B39: 443,255
A40: International | B40: 921,758
A42: Total 2016 Cap | B42: 15,072,488

Sheet Charts C3 and C4 data
A1: Adjusted emissions to take into account of trading in the EU Emissions Trading System (EU ETS) - 1990-2016 inventory, and fixed annual targets based on 1990-2008 inventory. Values in MtCO2e
B4: Baseline Period | C4: 1991 | D4: 1992 | E4: 1993 | F4: 1994 | G4: 1995 | H4: 1996 | I4: 1997 | J4: 1998 | K4: 1999 | L4: 2000 | M4: 2001 | N4: 2002 | O4: 2003 | P4: 2004 | Q4: 2005 | R4: 2006 | S4: 2007 | T4: 2008 | U4: 2009 | V4: 2010 | W4: 2011 | X4: 2012 | Y4: 2013 | Z4: 2014 | AA4: 2015 | AB4: 2016 | AC4: 2017 | AD4: 2018 | AE4: 2019 | AF4: 2020 | AG4: 2021 | AH4: 2022 | AI4: 2023 | AJ4: 2024 | AK4: 2025 | AL4: 2026 | AM4: 2027 | AN4: 2028 | AO4: 2029 | AP4: 2030 | AQ4: 2031 | AR4: 2032 | AS4: 2033 | AT4: 2034 | AU4: 2035 | AV4: 2036 | AW4: 2037 | AX4: 2038 | AY4: 2039 | AZ4: 2040 | BA4: 2041 | BB4: 2042 | BC4: 2043 | BD4: 2044 | BE4: 2045 | BF4: 2046 | BG4: 2047 | BH4: 2048 | BI4: 2049 | BJ4: 2050
A5: 1990-2008 INVENTORY | B5: 70.201 | G5: 67.762 | J5: 67.681 | K5: 63.309 | L5: 65.457 | M5: 64.798 | N5: 60.914 | O5: 60.506 | P5: 58.460 | Q5: 58.563 | R5: 57.770 | S5: 57.466 | T5: 55.326
A6: 1990-2016 INVENTORY | B6: 75.688 | G6: 75.553 | J6: 74.152 | K6: 70.903 | L6: 71.990 | M6: 71.312 | N6: 67.027 | O6: 66.616 | P6: 64.123 | Q6: 62.865 | R6: 60.557 | S6: 59.668 | T6: 57.785 | U6: 55.163 | V6: 54.722 | W6: 52.046 | X6: 54.227 | Y6: 45.158 | Z6: 39.541 | AA6: 40.45916676 | AB6: 41.48102179
A7: Fixed Annual Targets | V7: 53.652 | W7: 53.404 | X7: 53.226 | Y7: 47.976 | Z7: 46.958 | AA7: 45.928 | AB7: 44.933 | AC7: 43.946 | AD7: 42.966 | AE7: 41.976 | AF7: 40.717 | AG7: 39.495 | AH7: 38.31 | AI7: 37.161 | AJ7: 35.787 | AK7: 34.117 | AL7: 32.446 | AM7: 30.777
A8: Comparison with fixed annual target | V8: =V6-V7 -> 1.070 | W8: -1.358 | X8: 1.001 | Y8: -2.818 | Z8: -7.417 | AA8: -5.469 | AB8: -3.452
A9: % reduction to fixed targets based on 1990-2008 inventory | V9: =(V$7-$B5)/$B5 -> -23.6% | W9: -23.9% | X9: -24.2% | Y9: -31.7% | Z9: -33.1% | AA9: -34.6% | AB9: -36.0% | AC9: -37.4% | AD9: -38.8% | AE9: -40.2% | AF9: -42.0% | AG9: -43.7% | AH9: -45.4% | AI9: -47.1% | AJ9: -49.0% | AK9: -51.4% | AL9: -53.8% | AM9: -56.2%
A10: % reduction to fixed targets based on 1990-2015 inventory | V10: =(V$7-$B6)/$B6 -> -29.1% | W10: -29.4% | X10: -29.7% | Y10: -36.6% | Z10: -38.0% | AA10: -39.3% | AB10: -40.6% | AC10: -41.9% | AD10: -43.2% | AE10: -44.5% | AF10: -46.2% | AG10: -47.8% | AH10: -49.4% | AI10: -50.9% | AJ10: -52.7% | AK10: -54.9% | AL10: -57.1% | AM10: -59.3%
A11: 42% reduction (based on 1990-2015 inventory) | AF11: =0.58*B6 -> 43.899
A12: 80% reduction (based on 1990-2015 inventory) | BJ12: =0.2*B6 -> 15.138

Sheet Chart C5 data
A1: Scottish greenhouse gas emissions adjusted to take account of trading in the EU Emissions Trading System. Baseline to 2016. Values in MtCO2e
D3: Baseline Period | E3: 1995 | F3: 1998 | G3: 1999 | H3: 2000 | I3: 2001 | J3: 2002 | K3: 2003 | L3: 2004 | M3: 2005 | N3: 2006 | O3: 2007 | P3: 2008 | Q3: 2009 | R3: 2010 | S3: 2011 | T3: 2012 | U3: 2013 | V3: 2014 | W3: 2015 | X3: 2016
B4: No allowance for EU ETS | C4: Total Scottish greenhouse gas emissions (including international aviation and shipping) | D4: ='A1. Headline Chart data'!A4 -> 75.688 | E4: ='A1. Headline Chart data'!G4 -> 75.553 | F4: ='A1. Headline Chart data'!J4 -> 74.152 | G4: ='A1. Headline Chart data'!K4 -> 70.903 | H4: ='A1. Headline Chart data'!L4 -> 71.990 | I4: ='A1. Headline Chart data'!M4 -> 71.312 | J4: ='A1. Headline Chart data'!N4 -> 67.027 | K4: ='A1. Headline Chart data'!O4 -> 66.616 | L4: ='A1. Headline Chart data'!P4 -> 64.123 | M4: ='A1. Headline Chart data'!Q4 -> 62.112 | N4: ='A1. Headline Chart data'!R4 -> 64.326 | O4: ='A1. Headline Chart data'!S4 -> 59.946 | P4: ='A1. Headline Chart data'!T4 -> 58.644 | Q4: ='A1. Headline Chart data'!U4 -> 54.217 | R4: ='A1. Headline Chart data'!V4 -> 55.823 | S4: ='A1. Headline Chart data'!W4 -> 49.163 | T4: ='A1. Headline Chart data'!X4 -> 51.457 | U4: ='A1. Headline Chart data'!Y4 -> 48.394 | V4: ='A1. Headline Chart data'!Z4 -> 44.359 | W4: ='A1. Headline Chart data'!AA4 -> 43.006 | X4: ='A1. Headline Chart data'!AB4 -> 38.574
C5: Percentage change from baseline | E5: =(E4-$D4)/$D4 -> -0.2% | F5: =(F4-$D4)/$D4 -> -2.0% | G5: =(G4-$D4)/$D4 -> -6.3% | H5: -4.9% | I5: -5.8% | J5: -11.4% | K5: -12.0% | L5: -15.3% | M5: -17.9% | N5: -15.0% | O5: -20.8% | P5: -22.5% | Q5: -28.4% | R5: -26.2% | S5: -35.0% | T5: -32.0% | U5: -36.1% | V5: -41.4% | W5: -43.2% | X5: -49.0%
C6: Differences between EU ETS cap and EU ETS surrendered emissions for Scotland | M6: 0.571 | N6: -3.952 | O6: -0.460 | P6: -0.775 | Q6: 1.030 | R6: -1.018 | S6: 2.967 | T6: 2.854 | U6: -3.236403286 | V6: -4.818 | W6: -2.547 | X6: 2.907
C7: Scottish share of net purchases/(sales) by UK Government at the end of Phase I of EU ETS | M7: 0.182 | N7: 0.182 | O7: 0.182
C8: Scottish share of cancelled allowances by UK Government at the end of Phase II of EU ETS | P8: -0.084 | Q8: -0.084 | R8: -0.084 | S8: -0.084 | T8: -0.084
C9: Differences between EU ETS cap and traded emissions for Scotland - adjustment to emisisons | M9: =(M7+M6) -> 0.753 | N9: =(N7+N6) -> -3.769 | O9: =(O7+O6) -> -0.277 | P9: =(P8+P6) -> -0.859 | Q9: =(Q8+Q6) -> 0.946 | R9: =(R8+R6) -> -1.102 | S9: =(S8+S6) -> 2.883 | T9: =(T8+T6) -> 2.770 | U9: -3.236 | V9: -4.818 | W9: -2.546649171 | X9: 2.907
B10: With allowance for EU ETS | C10: Total Scottish greenhouse gas emissions | D10: =D4+D9 -> 75.688 | E10: =E4+E9 -> 75.553 | F10: =F4+F9 -> 74.152 | G10: =G4+G9 -> 70.903 | H10: =H4+H9 -> 71.990 | I10: =I4+I9 -> 71.312 | J10: 67.027 | K10: 66.616 | L10: 64.123 | M10: =M4+M9 -> 62.865 | N10: =N4+N9 -> 60.557 | O10: 59.668 | P10: 57.785 | Q10: 55.163 | R10: 54.722 | S10: 52.046 | T10: 54.227 | U10: =U4+U9 -> 45.158 | V10: 39.541 | W10: =W4+W9 -> 40.459 | X10: =X4+X9 -> 41.481
C11: Percentage change from baseline | E11: =(E10-$D10)/$D10 -> -0.2% | F11: =(F10-$D10)/$D10 -> -2.0% | G11: -6.3% | H11: -4.9% | I11: -5.8% | J11: -11.4% | K11: -12.0% | L11: -15.3% | M11: -16.9% | N11: =(N10-$D10)/$D10 -> -20.0% | O11: -21.2% | P11: -23.7% | Q11: -27.1% | R11: -27.7% | S11: -31.2% | T11: -28.4% | U11: -40.3% | V11: -47.8% | W11: -46.5% | X11: -45.2%

Sheet Chart D1 data
A1: Scottish Greenhouse Gas Emissions. Comparison of 1990-2015 and 1990-2016 Inventories. Values in MtCO2e
B3: Baseline Period | C3: 1990 | D3: 1991 | E3: 1992 | F3: 1993 | G3: 1994 | H3: 1995 | I3: 1996 | J3: 1997 | K3: 1998 | L3: 1999 | M3: 2000 | N3: 2001 | O3: 2002 | P3: 2003 | Q3: 2004 | R3: 2005 | S3: 2006 | T3: 2007 | U3: 2008 | V3: 2009 | W3: 2010 | X3: 2011 | Y3: 2012 | Z3: 2013 | AA3: 2014 | AB3: 2015 | AC3: 2016
A4: 1990-2016 | B4: ='A1. Headline Chart data'!A4 -> 75.7 | C4: ='A1. Headline Chart data'!B4 -> 75.6 | H4: ='A1. Headline Chart data'!G4 -> 75.6 | K4: ='A1. Headline Chart data'!J4 -> 74.2 | L4: ='A1. Headline Chart data'!K4 -> 70.9 | M4: ='A1. Headline Chart data'!L4 -> 72.0 | N4: ='A1. Headline Chart data'!M4 -> 71.3 | O4: ='A1. Headline Chart data'!N4 -> 67.0 | P4: ='A1. Headline Chart data'!O4 -> 66.6 | Q4: ='A1. Headline Chart data'!P4 -> 64.1 | R4: ='A1. Headline Chart data'!Q4 -> 62.1 | S4: ='A1. Headline Chart data'!R4 -> 64.3 | T4: ='A1. Headline Chart data'!S4 -> 59.9 | U4: ='A1. Headline Chart data'!T4 -> 58.6 | V4: ='A1. Headline Chart data'!U4 -> 54.2 | W4: ='A1. Headline Chart data'!V4 -> 55.8 | X4: ='A1. Headline Chart data'!W4 -> 49.2 | Y4: ='A1. Headline Chart data'!X4 -> 51.5 | Z4: ='A1. Headline Chart data'!Y4 -> 48.4 | AA4: ='A1. Headline Chart data'!Z4 -> 44.4 | AB4: ='A1. Headline Chart data'!AA4 -> 43.0 | AC4: ='A1. Headline Chart data'!AB4 -> 38.6
A5: 1990-2015 | B5: 77.1 | C5: 77.0 | H5: 77.6 | K5: 77.3 | L5: 74.0 | M5: 75.8 | N5: 74.8 | O5: 70.1 | P5: 70.4 | Q5: 68.2 | R5: 66.9 | S5: 70.0 | T5: 65.5 | U5: 63.3 | V5: 59.0 | W5: 61.8 | X5: 55.5 | Y5: 56.3 | Z5: 53.7 | AA5: 49.5 | AB5: 48.1

Sheet Chart D2 data
A1: Revisions to emissions in the Baseline Period, from the 1990-2015 inventory to the 1990-2016 inventory, by source sector. Values in MtCO2e, and percentage changes
B3: 1990-2015 | C3: 1990-2016 | D3: Change between 1990-2015 and 1990-2016 | E3: % Change between 1990-2015 and 1990-2016 | F3: Contribution to revisions
A4: TOTAL | B4: 77.1 | C4: 75.7 | D4: =C4-B4 -> -1.4 | E4: =(C4-B4)/B4 -> -1.8% | F4: =D4/D$4 -> 100.0%
A5: Agriculture and Related Land Use | B5: 14.6 | C5: 13.9 | D5: -0.7 | E5: -4.5% | F5: 46.7%
A6: Forestry | B6: -5.3 | C6: -7.8 | D6: -2.6 | E6: 48.9% | F6: 183.3%
A7: Residential | B7: 8.1 | C7: 8.1 | D7: -0.1 | E7: -0.9% | F7: 5.3%
A8: Waste Management | B8: 5.6 | C8: 6.0 | D8: 0.4 | E8: 7.2% | F8: -28.7%
A9: Business and Industrial Process | B9: 14.4 | C9: 14.4 | D9: 0.0 | E9: 0.2% | F9: -2.6%
A10: Public Sector Buildings | B10: 1.7 | C10: 1.7 | D10: 0.0 | E10: 0.4% | F10: -0.4%
A11: Development | B11: 1.9 | C11: 1.9 | D11: -0.0 | E11: -0.0% | F11: 0.1%
A12: Energy Supply | B12: 22.7 | C12: 22.7 | D12: 0.0 | E12: 0.0% | F12: 0.0%
A13: Transport (including International Aviation and Shipping) | B13: 13.3 | C13: 13.3 | D13: 0.0 | E13: 0.0% | F13: 0.0%
A16: 1990-2016
A17: Source Sector | B17: Baseline Period
A18: Total greenhouse gas emissions | B18: ='Chart B2 data'!B5 -> 75.7
A19: Energy Supply | B19: ='Chart B2 data'!B6 -> 22.7
A20: Transport (including International Aviation and Shipping) | B20: ='Chart B2 data'!B7 -> 14.8
A21: Agriculture and Related Land Use | B21: ='Chart B2 data'!B10 -> 13.9
A22: Business and Industrial process | B22: ='Chart B2 data'!B11 -> 14.4
A23: Residential | B23: ='Chart B2 data'!B12 -> 8.1
A24: Waste Management | B24: ='Chart B2 data'!B13 -> 6.0
A25: Development | B25: ='Chart B2 data'!B15 -> 1.9
A26: Public Sector Buildings | B26: ='Chart B2 data'!B16 -> 1.7
A27: Forestry | B27: ='Chart B2 data'!B17 -> -7.8

Sheet Chart D3 data
A1: Revisions to emissions in 2015, from the 1990-2015 inventory to the 1990-2016 inventory, by source sector. Values in MtCO2e, and percentage changes
B3: 1990-2015 | C3: 1990-2016 | D3: Change between 1990-2015 and 1990-2016 | E3: % Change between 1990-2015 and 1990-2016 | F3: Contribution to revisions
A4: TOTAL | B4: 49.5 | C4: =(B18) -> 43.0 | D4: =C4-B4 -> -6.5 | E4: -10.5% | F4: =D4/D$4 -> 100.0%
A5: Agriculture and Related Land Use | B5: 11.0 | C5: =(B21) -> 10.2 | D5: -0.8 | E5: -6.0% | F5: 12.7%
A6: Forestry | B6: -7.3 | C6: =(B27) -> -12.9 | D6: -5.6 | E6: 84.8% | F6: 85.8%
A7: Waste Management | B7: 1.5 | C7: =(B24) -> 1.7 | D7: 0.3 | E7: 22.1% | F7: -3.9%
A8: Energy Supply | B8: 13.9 | C8: =(B19) -> 12.2 | D8: -1.6 | E8: 0.2% | F8: 25.3%
A9: Transport (including International Aviation and Shipping) | B9: 12.9 | C9: =(B20) -> 14.1 | D9: 1.2 | E9: 7.1% | F9: -18.0%
A10: Public Sector Buildings | B10: 1.1 | C10: =(B26) -> 1.1 | D10: -0.0 | E10: 0.5% | F10: 0.2%
A11: Residential | B11: 5.9 | C11: =(B23) -> 6.1 | D11: 0.2 | E11: 0.2% | F11: -2.9%
A12: Development | B12: 1.7 | C12: =(B25) -> 1.9 | D12: 0.2 | E12: 9.7% | F12: -2.4%
A13: Business and Industrial Process | B13: 8.7 | C13: =(B22) -> 8.7 | D13: -0.0 | E13: 0.9% | F13: 0.3%
A16: 1990-2016
A17: Source Sector | B17: Baseline Period
A18: Total greenhouse gas emissions | B18: ='Chart B2 data'!V5 -> 43.0
A19: Energy Supply | B19: ='Chart B2 data'!V6 -> 12.2
A20: Transport (including International Aviation and Shipping) | B20: ='Chart B2 data'!V7 -> 14.1
A21: Agriculture and Related Land Use | B21: ='Chart B2 data'!V10 -> 10.2
A22: Business and Industrial process | B22: ='Chart B2 data'!V11 -> 8.7
A23: Residential | B23: ='Chart B2 data'!V12 -> 6.1
A24: Waste Management | B24: ='Chart B2 data'!V13 -> 1.7
A25: Development | B25: ='Chart B2 data'!V15 -> 1.9
A26: Public Sector Buildings | B26: ='Chart B2 data'!V16 -> 1.1
A27: Forestry | B27: ='Chart B2 data'!V17 -> -12.9

Sheet Chart D4 data
A1: Scottish Greenhouse Gas Emissions by Source Sector, Successive Inventories from 1990-2008 to 1990-2016. Values in Mt CO2e
B3: Baseline Period | C3: 1990 | D3: 1995 | E3: 1998 | F3: 1999 | G3: 2000 | H3: 2001 | I3: 2002 | J3: 2003 | K3: 2004 | L3: 2005 | M3: 2006 | N3: 2007 | O3: 2008 | P3: 2009 | Q3: 2010 | R3: 2011 | S3: 2012 | T3: 2013 | U3: 2014 | V3: 2015 | W3: 2016
A4: Total
A5: 1990-2008 | B5: 70.2 | C5: 70.1 | D5: 67.8 | E5: 67.7 | F5: 63.3 | G5: 65.5 | H5: 64.8 | I5: 60.9 | J5: 60.5 | K5: 58.5 | L5: 57.8 | M5: 61.5 | N5: 57.8 | O5: 56.1
A6: 1990-2009 | B6: 71.8 | C6: 71.6 | D6: 68.6 | E6: 68.5 | F6: 64.3 | G6: 66.0 | H6: 65.4 | I6: 61.2 | J6: 60.7 | K6: 58.5 | L6: 57.5 | M6: 61.2 | N6: 56.9 | O6: 54.8 | P6: 51.0
A7: 1990-2010 | B7: 72.3 | C7: 72.2 | D7: 69.8 | E7: 70.0 | F7: 65.8 | G7: 67.5 | H7: 67.0 | I7: 62.6 | J7: 62.0 | K7: 59.8 | L7: 58.7 | M7: 62.6 | N7: 58.3 | O7: 56.6 | P7: 52.7 | Q7: 55.7
A8: 1990-2011 | B8: 73.0 | C8: 72.9 | D8: 70.9 | E8: 70.3 | F8: 66.8 | G8: 69.0 | H8: 68.2 | I8: 63.8 | J8: 63.3 | K8: 61.1 | L8: 60.3 | M8: 63.9 | N8: 59.4 | O8: 58.1 | P8: 54.2 | Q8: 56.9 | R8: 51.3
A9: 1990-2012 | B9: 75.6 | C9: 75.5 | D9: 75.4 | E9: 74.2 | F9: 70.3 | G9: 72.0 | H9: 71.3 | I9: 67.0 | J9: 66.7 | K9: 64.4 | L9: 63.1 | M9: 66.8 | N9: 62.2 | O9: 60.2 | P9: 56.3 | Q9: 58.3 | R9: 52.5 | S9: 52.9
A10: 1990-2013 | B10: 80.8 | C10: 80.7 | D10: 81.2 | E10: 80.1 | F10: 76.5 | G10: 78.0 | H10: 77.0 | I10: 72.4 | J10: 72.3 | K10: 69.9 | L10: 68.4 | M10: 71.4 | N10: 66.6 | O10: 64.3 | P10: 59.8 | Q10: 61.5 | R10: 54.8 | S10: 54.9 | T10: 53.0
A11: 1990-2014 | B11: 77.3 | C11: 77.2 | D11: 77.6 | E11: 76.9 | F11: 73.1 | G11: 74.7 | H11: 73.9 | I11: 69.5 | J11: 69.5 | K11: 67.2 | L11: 65.9 | M11: 69.0 | N11: 64.2 | O11: 61.9 | P11: 57.2 | Q11: 59.0 | R11: 52.3 | S11: 52.7 | T11: 51.1 | U11: 46.7
A12: 1990-2015 | B12: 77.1 | C12: 77.0 | D12: 77.6 | E12: 77.3 | F12: 74.0 | G12: 75.8 | H12: 74.8 | I12: 70.1 | J12: 70.4 | K12: 68.2 | L12: 66.9 | M12: 70.0 | N12: 65.5 | O12: 63.3 | P12: 59.0 | Q12: 61.8 | R12: 55.5 | S12: 56.3 | T12: 53.7 | U12: 49.5 | V12: 48.1
A13: 1990-2016 | B13: 75.7 | C13: 75.6 | D13: 75.6 | E13: 74.2 | F13: 70.9 | G13: 72.0 | H13: 71.3 | I13: 67.0 | J13: 66.6 | K13: 64.1 | L13: 62.1 | M13: 64.3 | N13: 59.9 | O13: 58.6 | P13: 54.2 | Q13: 55.8 | R13: 49.2 | S13: 51.5 | T13: 48.4 | U13: 44.4 | V13: 43.0 | W13: 38.6
A14: Energy Supply
A15: 1990-2008 | B15: 22.3 | C15: 22.3 | D15: 26.5 | E15: 26.2 | F15: 23.0 | G15: 25.8 | H15: 25.2 | I15: 23.2 | J15: 23.1 | K15: 21.3 | L15: 20.1 | M15: 23.8 | N15: 20.7 | O15: 19.4
A16: 1990-2009 | B16: 22.2 | C16: 22.2 | D16: 26.4 | E16: 26.2 | F16: 23.1 | G16: 25.9 | H16: 25.3 | I16: 23.3 | J16: 23.4 | K16: 21.6 | L16: 20.5 | M16: 24.4 | N16: 21.1 | O16: 19.6 | P16: 18.2
A17: 1990-2010 | B17: 22.3 | C17: 22.3 | D17: 26.5 | E17: 26.3 | F17: 23.2 | G17: 26.0 | H17: 25.5 | I17: 23.4 | J17: 23.4 | K17: 21.7 | L17: 20.5 | M17: 24.7 | N17: 21.3 | O17: 19.8 | P17: 18.5 | Q17: 20.7
A18: 1990-2011 | B18: 22.4 | C18: 22.4 | D18: 26.5 | E18: 25.5 | F18: 23.1 | G18: 26.0 | H18: 25.3 | I18: 23.3 | J18: 23.4 | K18: 21.8 | L18: 20.4 | M18: 24.4 | N18: 21.1 | O18: 19.9 | P18: 18.6 | Q18: 20.7 | R18: 16.9
A19: 1990-2012 | B19: 22.4 | C19: 22.4 | D19: 26.5 | E19: 25.5 | F19: 23.1 | G19: 26.0 | H19: 25.3 | I19: 23.3 | J19: 23.4 | K19: 21.8 | L19: 20.5 | M19: 24.7 | N19: 21.3 | O19: 20.0 | P19: 18.6 | Q19: 20.7 | R19: 16.9 | S19: 17.1
A20: 1990-2013 | B20: 22.7 | C20: 22.7 | D20: 26.8 | E20: 25.7 | F20: 23.3 | G20: 26.2 | H20: 25.5 | I20: 23.5 | J20: 23.6 | K20: 21.8 | L20: 20.8 | M20: 24.7 | N20: 21.4 | O20: 20.0 | P20: 18.7 | Q20: 20.9 | R20: 17.0 | S20: 17.5 | T20: 16.0
A21: 1990-2014 | B21: 22.8 | C21: 22.8 | D21: 26.8 | E21: 25.8 | F21: 23.3 | G21: 26.3 | H21: 25.6 | I21: 23.5 | J21: 23.7 | K21: 21.9 | L21: 20.7 | M21: 24.7 | N21: 21.4 | O21: 20.2 | P21: 18.8 | Q21: 20.9 | R21: 17.0 | S21: 17.5 | T21: 16.0 | U21: 13.8
A22: 1990-2015 | B22: 22.7 | C22: 22.7 | D22: 26.8 | E22: 25.8 | F22: 23.4 | G22: 26.3 | H22: 25.6 | I22: 23.5 | J22: 23.7 | K22: 21.9 | L22: 20.8 | M22: 24.8 | N22: 21.4 | O22: 20.1 | P22: 18.7 | Q22: 20.8 | R22: 17.0 | S22: 17.5 | T22: 16.0 | U22: 13.9 | V22: 12.2
A23: 1990-2016 | B23: 22.7 | C23: 22.7 | D23: 26.8 | E23: 25.8 | F23: 23.4 | G23: 26.3 | H23: 25.6 | I23: 23.5 | J23: 23.7 | K23: 21.9 | L23: 20.8 | M23: 24.7 | N23: 21.4 | O23: 20.1 | P23: 18.7 | Q23: 20.9 | R23: 17.0 | S23: 17.4 | T23: 16.0 | U23: 13.9 | V23: 12.2 | W23: 7.2
A24: Agriculture and Related Land Use
A25: 1990-2008 | B25: 13.8 | C25: 13.8 | D25: 13.7 | E25: 13.3 | F25: 13.1 | G25: 12.8 | H25: 12.5 | I25: 12.5 | J25: 12.6 | K25: 12.3 | L25: 12.3 | M25: 12.1 | N25: 11.8 | O25: 11.5
A26: 1990-2009 | B26: 14.5 | C26: 14.5 | D26: 14.4 | E26: 14.1 | F26: 14.0 | G26: 13.4 | H26: 12.9 | I26: 12.7 | J26: 12.6 | K26: 12.1 | L26: 11.9 | M26: 11.6 | N26: 11.1 | O26: 10.7 | P26: 10.6
A27: 1990-2010 | B27: 14.3 | C27: 14.3 | D27: 14.4 | E27: 14.4 | F27: 14.3 | G27: 13.6 | H27: 13.2 | I27: 13.1 | J27: 13.1 | K27: 12.6 | L27: 12.1 | M27: 11.9 | N27: 11.3 | O27: 10.9 | P27: 10.7 | Q27: 10.5
A28: 1990-2011 | B28: 14.3 | C28: 14.3 | D28: 14.4 | E28: 14.5 | F28: 14.3 | G28: 13.7 | H28: 13.2 | I28: 13.0 | J28: 13.0 | K28: 12.6 | L28: 12.2 | M28: 11.8 | N28: 11.3 | O28: 10.9 | P28: 10.7 | Q28: 10.4 | R28: 10.1
A29: 1990-2012 | B29: 15.2 | C29: 15.2 | D29: 15.4 | E29: 15.5 | F29: 15.3 | G29: 15.1 | H29: 14.5 | I29: 14.3 | J29: 14.3 | K29: 13.9 | L29: 13.6 | M29: 13.1 | N29: 12.7 | O29: 12.2 | P29: 12.0 | Q29: 11.8 | R29: 11.5 | S29: 11.2
A30: 1990-2013 | B30: 16.1 | C30: 16.1 | D30: 16.3 | E30: 16.3 | F30: 16.1 | G30: 16.1 | H30: 15.5 | I30: 15.2 | J30: 15.3 | K30: 14.9 | L30: 14.6 | M30: 14.2 | N30: 13.8 | O30: 13.3 | P30: 13.3 | Q30: 13.2 | R30: 12.7 | S30: 12.5 | T30: 12.4
A31: 1990-2014 | B31: 14.2 | C31: 14.2 | D31: 14.5 | E31: 14.5 | F31: 14.1 | G31: 14.0 | H31: 13.5 | I31: 13.2 | J31: 13.3 | K31: 12.9 | L31: 12.6 | M31: 12.2 | N31: 11.9 | O31: 11.4 | P31: 11.4 | Q31: 11.3 | R31: 10.9 | S31: 10.7 | T31: 10.9 | U31: 10.7
A32: 1990-2015 | B32: 14.6 | C32: 14.6 | D32: 14.8 | E32: 14.8 | F32: 14.5 | G32: 14.4 | H32: 13.9 | I32: 13.6 | J32: 13.8 | K32: 13.4 | L32: 13.0 | M32: 12.6 | N32: 12.3 | O32: 11.8 | P32: 11.9 | Q32: 11.7 | R32: 11.3 | S32: 11.1 | T32: 11.2 | U32: 11.0 | V32: 10.8
A33: 1990-2016 | B33: 13.9 | C33: 13.9 | D33: 14.1 | E33: 14.0 | F33: 13.9 | G33: 13.7 | H33: 13.2 | I33: 12.9 | J33: 13.0 | K33: 12.5 | L33: 12.3 | M33: 11.9 | N33: 11.9 | O33: 11.2 | P33: 11.2 | Q33: 11.1 | R33: 10.7 | S33: 10.5 | T33: 10.4 | U33: 10.4 | V33: 10.2 | W33: 10.0
A34: Business and Industrial Process
A35: 1990-2008 | B35: 12.4 | C35: 12.3 | D35: 8.0 | E35: 8.2 | F35: 8.3 | G35: 8.5 | H35: 9.1 | I35: 8.3 | J35: 8.2 | K35: 8.1 | L35: 8.5 | M35: 8.3 | N35: 8.1 | O35: 7.7
A36: 1990-2009 | B36: 12.4 | C36: 12.3 | D36: 8.0 | E36: 8.2 | F36: 8.3 | G36: 8.6 | H36: 9.1 | I36: 8.3 | J36: 8.3 | K36: 8.1 | L36: 8.4 | M36: 8.2 | N36: 7.9 | O36: 7.7 | P36: 6.8
A37: 1990-2010 | B37: 13.2 | C37: 13.1 | D37: 8.7 | E37: 8.8 | F37: 8.9 | G37: 9.2 | H37: 9.7 | I37: 8.9 | J37: 8.9 | K37: 8.7 | L37: 9.2 | M37: 8.9 | N37: 8.6 | O37: 8.9 | P37: 7.8 | Q37: 7.9
A38: 1990-2011 | B38: 13.6 | C38: 13.6 | D38: 9.5 | E38: 9.7 | F38: 9.8 | G38: 10.4 | H38: 11.0 | I38: 10.2 | J38: 10.1 | K38: 9.9 | L38: 10.6 | M38: 10.2 | N38: 9.7 | O38: 10.2 | P38: 9.1 | Q38: 9.1 | R38: 9.2
A39: 1990-2012 | B39: 13.6 | C39: 13.5 | D39: 9.3 | E39: 9.5 | F39: 9.6 | G39: 9.9 | H39: 10.4 | I39: 9.4 | J39: 9.5 | K39: 9.4 | L39: 9.8 | M39: 9.5 | N39: 9.1 | O39: 9.1 | P39: 8.1 | Q39: 8.2 | R39: 8.5 | S39: 8.5
A40: 1990-2013 | B40: 14.4 | C40: 14.3 | D40: 11.0 | E40: 11.1 | F40: 11.3 | G40: 11.2 | H40: 11.5 | I40: 10.7 | J40: 10.8 | K40: 10.7 | L40: 11.0 | M40: 10.8 | N40: 10.3 | O40: 10.4 | P40: 9.1 | Q40: 9.3 | R40: 9.2 | S40: 8.9 | T40: 9.1
A41: 1990-2014 | B41: 14.3 | C41: 14.3 | D41: 11.0 | E41: 11.1 | F41: 11.3 | G41: 11.2 | H41: 11.5 | I41: 10.7 | J41: 10.8 | K41: 10.8 | L41: 11.1 | M41: 10.8 | N41: 10.4 | O41: 10.5 | P41: 9.2 | Q41: 9.3 | R41: 9.1 | S41: 8.9 | T41: 9.2 | U41: 8.7
A42: 1990-2015 | B42: 14.4 | C42: 14.4 | D42: 11.0 | E42: 11.2 | F42: 11.4 | G42: 11.3 | H42: 11.6 | I42: 10.8 | J42: 11.0 | K42: 11.0 | L42: 11.3 | M42: 11.1 | N42: 10.6 | O42: 10.7 | P42: 9.4 | Q42: 9.7 | R42: 9.2 | S42: 9.0 | T42: 9.2 | U42: 8.7 | V42: 8.6
A43: 1990-2016 | B43: 14.4 | C43: 14.4 | D43: 11.2 | E43: 11.2 | F43: 11.4 | G43: 11.3 | H43: 11.6 | I43: 10.8 | J43: 11.0 | K43: 10.9 | L43: 10.6 | M43: 10.3 | N43: 9.9 | O43: 10.4 | P43: 9.2 | Q43: 9.4 | R43: 9.1 | S43: 9.0 | T43: 9.2 | U43: 8.7 | V43: 8.7 | W43: 8.6
A44: Residential
A45: 1990-2008 | B45: 7.8 | C45: 7.8 | D45: 7.9 | E45: 8.2 | F45: 8.0 | G45: 7.9 | H45: 8.3 | I45: 7.8 | J45: 7.8 | K45: 7.8 | L45: 7.7 | M45: 7.4 | N45: 7.2 | O45: 7.6
A46: 1990-2009 | B46: 8.2 | C46: 8.1 | D46: 8.1 | E46: 8.5 | F46: 8.4 | G46: 8.3 | H46: 8.7 | I46: 8.1 | J46: 8.1 | K46: 8.2 | L46: 8.0 | M46: 7.8 | N46: 7.5 | O46: 7.8 | P46: 7.3
A47: 1990-2010 | B47: 8.2 | C47: 8.1 | D47: 8.1 | E47: 8.5 | F47: 8.4 | G47: 8.3 | H47: 8.7 | I47: 8.1 | J47: 8.1 | K47: 8.2 | L47: 8.0 | M47: 7.8 | N47: 7.6 | O47: 7.8 | P47: 7.3 | Q47: 8.4
A48: 1990-2011 | B48: 8.2 | C48: 8.1 | D48: 8.1 | E48: 8.5 | F48: 8.4 | G48: 8.3 | H48: 8.7 | I48: 8.1 | J48: 8.1 | K48: 8.2 | L48: 8.0 | M48: 7.8 | N48: 7.6 | O48: 7.8 | P48: 7.3 | Q48: 8.4 | R48: 6.6
A49: 1990-2012 | B49: 8.2 | C49: 8.2 | D49: 8.1 | E49: 8.5 | F49: 8.4 | G49: 8.2 | H49: 8.7 | I49: 8.0 | J49: 8.0 | K49: 8.1 | L49: 7.9 | M49: 7.7 | N49: 7.5 | O49: 7.7 | P49: 7.3 | Q49: 8.3 | R49: 6.6 | S49: 7.3
A50: 1990-2013 | B50: 8.0 | C50: 8.0 | D50: 7.8 | E50: 8.0 | F50: 7.9 | G50: 7.8 | H50: 8.3 | I50: 7.5 | J50: 7.5 | K50: 7.7 | L50: 7.6 | M50: 7.4 | N50: 7.2 | O50: 7.4 | P50: 7.1 | Q50: 7.9 | R50: 6.2 | S50: 7.0 | T50: 7.0
A51: 1990-2014 | B51: 8.0 | C51: 7.9 | D51: 7.8 | E51: 8.0 | F51: 7.9 | G51: 7.8 | H51: 8.3 | I51: 7.6 | J51: 7.6 | K51: 7.7 | L51: 7.6 | M51: 7.4 | N51: 7.2 | O51: 7.4 | P51: 7.1 | Q51: 8.0 | R51: 6.2 | S51: 7.0 | T51: 7.0 | U51: 5.9
A52: 1990-2015 | B52: 8.1 | C52: 8.1 | D52: 7.9 | E52: 8.2 | F52: 8.0 | G52: 7.9 | H52: 8.4 | I52: 7.7 | J52: 7.7 | K52: 7.8 | L52: 7.7 | M52: 7.5 | N52: 7.3 | O52: 7.5 | P52: 7.2 | Q52: 8.1 | R52: 6.3 | S52: 7.1 | T52: 7.1 | U52: 5.9 | V52: 6.1
A53: 1990-2016 | B53: 8.1 | C53: 8.0 | D53: 7.8 | E53: 8.1 | F53: 8.0 | G53: 7.8 | H53: 8.3 | I53: 7.6 | J53: 7.6 | K53: 7.8 | L53: 7.7 | M53: 7.5 | N53: 7.3 | O53: 7.5 | P53: 7.2 | Q53: 8.0 | R53: 6.5 | S53: 7.0 | T53: 7.1 | U53: 5.9 | V53: 6.1 | W53: 6.3
A54: Waste Management
A55: 1990-2008 | B55: 5.8 | C55: 5.8 | D55: 5.1 | E55: 4.3 | F55: 4.0 | G55: 3.7 | H55: 3.1 | I55: 2.9 | J55: 2.6 | K55: 2.5 | L55: 2.5 | M55: 2.6 | N55: 2.6 | O55: 2.8
A56: 1990-2009 | B56: 6.5 | C56: 6.5 | D56: 5.1 | E56: 4.1 | F56: 3.7 | G56: 3.5 | H56: 2.9 | I56: 2.7 | J56: 2.3 | K56: 2.2 | L56: 2.2 | M56: 2.2 | N56: 2.2 | O56: 2.2 | P56: 2.1
A57: 1990-2010 | B57: 6.6 | C57: 6.6 | D57: 5.7 | E57: 4.7 | F57: 4.3 | G57: 4.0 | H57: 3.5 | I57: 3.2 | J57: 2.8 | K57: 2.6 | L57: 2.5 | M57: 2.4 | N57: 2.4 | O57: 2.3 | P57: 2.2 | Q57: 2.2
A58: 1990-2011 | B58: 6.7 | C58: 6.7 | D58: 5.8 | E58: 4.8 | F58: 4.4 | G58: 4.1 | H58: 3.6 | I58: 3.3 | J58: 2.9 | K58: 2.7 | L58: 2.6 | M58: 2.5 | N58: 2.5 | O58: 2.4 | P58: 2.3 | Q58: 2.2 | R58: 2.2
A59: 1990-2012 | B59: 6.7 | C59: 6.7 | D59: 6.7 | E59: 6.2 | F59: 5.7 | G59: 5.2 | H59: 5.1 | I59: 5.1 | J59: 4.6 | K59: 4.0 | L59: 3.9 | M59: 3.8 | N59: 3.6 | O59: 3.6 | P59: 3.4 | Q59: 3.0 | R59: 2.9 | S59: 2.8
A60: 1990-2013 | B60: 9.9 | C60: 9.9 | D60: 10.1 | E60: 9.8 | F60: 9.4 | G60: 9.1 | H60: 8.8 | I60: 8.6 | J60: 8.0 | K60: 7.4 | L60: 7.0 | M60: 6.5 | N60: 6.0 | O60: 5.4 | P60: 4.6 | Q60: 3.9 | R60: 3.6 | S60: 3.2 | T60: 2.7
A61: 1990-2014 | B61: 9.8 | C61: 9.8 | D61: 10.1 | E61: 9.8 | F61: 9.4 | G61: 9.1 | H61: 8.7 | I61: 8.5 | J61: 8.0 | K61: 7.4 | L61: 6.9 | M61: 6.5 | N61: 5.9 | O61: 5.3 | P61: 4.5 | Q61: 3.8 | R61: 3.5 | S61: 3.1 | T61: 2.6 | U61: 2.2
A62: 1990-2015 | B62: 5.6 | C62: 5.6 | D62: 6.2 | E62: 6.2 | F62: 6.1 | G62: 6.2 | H62: 5.8 | I62: 5.4 | J62: 5.0 | K62: 4.4 | L62: 4.0 | M62: 3.6 | N62: 3.2 | O62: 3.0 | P62: 2.7 | Q62: 2.5 | R62: 2.4 | S62: 2.0 | T62: 1.4 | U62: 1.5 | V62: 1.4
A63: 1990-2016 | B63: 6.0 | C63: 6.0 | D63: 6.2 | E63: 6.1 | F63: 5.8 | G63: 5.7 | H63: 5.4 | I63: 5.2 | J63: 5.1 | K63: 4.4 | L63: 4.0 | M63: 3.6 | N63: 3.2 | O63: 3.1 | P63: 2.8 | Q63: 2.5 | R63: 2.4 | S63: 2.1 | T63: 1.5 | U63: 1.5 | V63: 1.7 | W63: 1.6
A64: Transport (including International Aviation and Shipping)
A65: 1990-2008 | B65: 13.3 | C65: 13.3 | D65: 13.2 | E65: 14.1 | F65: 13.8 | G65: 13.5 | H65: 13.4 | I65: 13.3 | J65: 13.6 | K65: 13.9 | L65: 14.2 | M65: 14.8 | N65: 14.8 | O65: 14.4
A66: 1990-2009 | B66: 13.1 | C66: 13.1 | D66: 13.1 | E66: 13.9 | F66: 13.6 | G66: 13.3 | H66: 13.2 | I66: 13.1 | J66: 13.3 | K66: 13.7 | L66: 14.0 | M66: 14.5 | N66: 14.6 | O66: 14.3 | P66: 13.6
A67: 1990-2010 | B67: 13.0 | C67: 13.0 | D67: 13.0 | E67: 13.9 | F67: 13.5 | G67: 13.2 | H67: 13.2 | I67: 13.1 | J67: 13.3 | K67: 13.6 | L67: 13.9 | M67: 14.5 | N67: 14.6 | O67: 14.3 | P67: 13.6 | Q67: 13.2
A68: 1990-2011 | B68: 12.9 | C68: 12.9 | D68: 12.9 | E68: 13.8 | F68: 13.4 | G68: 13.1 | H68: 13.1 | I68: 13.0 | J68: 13.3 | K68: 13.6 | L68: 13.9 | M68: 14.5 | N68: 14.7 | O68: 14.3 | P68: 13.6 | Q68: 13.1 | R68: 13.0
A69: 1990-2012 | B69: 13.1 | C69: 13.1 | D69: 13.1 | E69: 14.0 | F69: 13.6 | G69: 13.2 | H69: 13.1 | I69: 13.1 | J69: 13.3 | K69: 13.6 | L69: 14.0 | M69: 14.5 | N69: 14.8 | O69: 14.4 | P69: 13.8 | Q69: 13.2 | R69: 13.1 | S69: 12.9
A70: 1990-2013 | B70: 13.2 | C70: 13.2 | D70: 13.2 | E70: 14.1 | F70: 13.7 | G70: 13.3 | H70: 13.3 | I70: 13.2 | J70: 13.4 | K70: 13.8 | L70: 14.1 | M70: 14.7 | N70: 14.8 | O70: 14.5 | P70: 13.9 | Q70: 13.3 | R70: 13.2 | S70: 13.0 | T70: 12.9
A71: 1990-2014 | B71: 13.3 | C71: 13.3 | D71: 13.3 | E71: 14.3 | F71: 13.9 | G71: 13.4 | H71: 13.4 | I71: 13.3 | J71: 13.5 | K71: 13.9 | L71: 14.2 | M71: 14.8 | N71: 14.9 | O71: 14.6 | P71: 13.9 | Q71: 13.4 | R71: 13.2 | S71: 13.1 | T71: 12.9 | U71: 12.9
A72: 1990-2015 | B72: 13.3 | C72: 13.3 | D72: 13.3 | E72: 14.3 | F72: 13.8 | G72: 13.4 | H72: 13.4 | I72: 13.3 | J72: 13.5 | K72: 13.9 | L72: 14.2 | M72: 14.8 | N72: 14.9 | O72: 14.6 | P72: 13.9 | Q72: 13.4 | R72: 13.2 | S72: 13.1 | T72: 13.0 | U72: 13.1 | V72: 13.1
A73: 1990-2016 | B73: 14.8 | C73: 14.8 | D73: 15.7 | E73: 16.4 | F73: 16.3 | G73: 15.6 | H73: 15.4 | I73: 15.8 | J73: 15.6 | K73: 15.7 | L73: 15.8 | M73: 15.8 | N73: 16.1 | O73: 15.5 | P73: 14.9 | Q73: 14.3 | R73: 13.9 | S73: 13.7 | T73: 13.6 | U73: 13.8 | V73: 14.1 | W73: 14.4
A74: Development
A75: 1990-2008 | B75: 1.8 | C75: 1.8 | D75: 1.7 | E75: 1.7 | F75: 1.7 | G75: 1.7 | H75: 1.7 | I75: 1.7 | J75: 1.7 | K75: 1.7 | L75: 1.7 | M75: 1.7 | N75: 1.7 | O75: 1.7
A76: 1990-2009 | B76: 1.8 | C76: 1.8 | D76: 1.7 | E76: 1.8 | F76: 1.8 | G76: 1.7 | H76: 1.7 | I76: 1.7 | J76: 1.7 | K76: 1.7 | L76: 1.6 | M76: 1.6 | N76: 1.6 | O76: 1.6 | P76: 1.5
A77: 1990-2010 | B77: 1.8 | C77: 1.8 | D77: 1.8 | E77: 1.8 | F77: 1.8 | G77: 1.8 | H77: 1.7 | I77: 1.7 | J77: 1.7 | K77: 1.7 | L77: 1.7 | M77: 1.7 | N77: 1.7 | O77: 1.6 | P77: 1.6 | Q77: 1.6
A78: 1990-2011 | B78: 1.7 | C78: 1.7 | D78: 1.7 | E78: 1.7 | F78: 1.7 | G78: 1.7 | H78: 1.7 | I78: 1.7 | J78: 1.7 | K78: 1.7 | L78: 1.6 | M78: 1.6 | N78: 1.6 | O78: 1.6 | P78: 1.6 | Q78: 1.6 | R78: 1.7
A79: 1990-2012 | B79: 1.7 | C79: 1.7 | D79: 1.7 | E79: 1.7 | F79: 1.7 | G79: 1.7 | H79: 1.7 | I79: 1.7 | J79: 1.7 | K79: 1.7 | L79: 1.6 | M79: 1.6 | N79: 1.6 | O79: 1.6 | P79: 1.6 | Q79: 1.6 | R79: 1.7 | S79: 1.7
A80: 1990-2013 | B80: 1.8 | C80: 1.8 | D80: 1.8 | E80: 1.8 | F80: 1.8 | G80: 1.8 | H80: 1.7 | I80: 1.7 | J80: 1.7 | K80: 1.7 | L80: 1.7 | M80: 1.6 | N80: 1.6 | O80: 1.6 | P80: 1.6 | Q80: 1.6 | R80: 1.6 | S80: 1.6 | T80: 1.6
A81: 1990-2014 | B81: 1.8 | C81: 1.8 | D81: 1.8 | E81: 1.8 | F81: 1.8 | G81: 1.8 | H81: 1.8 | I81: 1.7 | J81: 1.7 | K81: 1.7 | L81: 1.7 | M81: 1.7 | N81: 1.7 | O81: 1.6 | P81: 1.6 | Q81: 1.6 | R81: 1.6 | S81: 1.6 | T81: 1.6 | U81: 1.6
A82: 1990-2015 | B82: 1.9 | C82: 1.9 | D82: 1.9 | E82: 1.9 | F82: 1.9 | G82: 1.8 | H82: 1.8 | I82: 1.8 | J82: 1.8 | K82: 1.8 | L82: 1.8 | M82: 1.8 | N82: 1.7 | O82: 1.7 | P82: 1.8 | Q82: 1.8 | R82: 1.8 | S82: 1.7 | T82: 1.7 | U82: 1.7 | V82: 1.7
A83: 1990-2016 | B83: 1.9 | C83: 1.9 | D83: 1.9 | E83: 1.9 | F83: 1.9 | G83: 1.9 | H83: 1.8 | I83: 1.9 | J83: 1.9 | K83: 2.0 | L83: 2.0 | M83: 1.8 | N83: 1.9 | O83: 1.9 | P83: 1.9 | Q83: 1.9 | R83: 1.9 | S83: 1.9 | T83: 1.9 | U83: 1.9 | V83: 1.9 | W83: 2.0
A84: Public Sector Buildings
A85: 1990-2008 | B85: 1.3 | C85: 1.3 | D85: 1.1 | E85: 1.1 | F85: 1.1 | G85: 1.1 | H85: 1.1 | I85: 0.9 | J85: 0.9 | K85: 1.0 | L85: 1.1 | M85: 1.0 | N85: 0.9 | O85: 1.0
A86: 1990-2009 | B86: 1.3 | C86: 1.3 | D86: 1.2 | E86: 1.1 | F86: 1.2 | G86: 1.1 | H86: 1.1 | I86: 0.9 | J86: 0.9 | K86: 1.0 | L86: 1.1 | M86: 1.0 | N86: 0.9 | O86: 0.9 | P86: 0.8
A87: 1990-2010 | B87: 1.2 | C87: 1.2 | D87: 1.1 | E87: 1.1 | F87: 1.1 | G87: 1.0 | H87: 1.1 | I87: 0.9 | J87: 0.9 | K87: 1.0 | L87: 1.1 | M87: 1.0 | N87: 0.9 | O87: 0.9 | P87: 0.8 | Q87: 0.9
A88: 1990-2011 | B88: 1.2 | C88: 1.2 | D88: 1.1 | E88: 1.1 | F88: 1.1 | G88: 1.0 | H88: 1.1 | I88: 0.9 | J88: 0.9 | K88: 1.0 | L88: 1.1 | M88: 1.0 | N88: 0.9 | O88: 1.0 | P88: 0.8 | Q88: 0.9 | R88: 0.7
A89: 1990-2012 | B89: 1.7 | C89: 1.7 | D89: 1.8 | E89: 1.7 | F89: 1.7 | G89: 1.6 | H89: 1.7 | I89: 1.4 | J89: 1.4 | K89: 1.5 | L89: 1.5 | M89: 1.4 | N89: 1.3 | O89: 1.4 | P89: 1.3 | Q89: 1.4 | R89: 1.3 | S89: 1.4
A90: 1990-2013 | B90: 1.7 | C90: 1.7 | D90: 1.8 | E90: 1.8 | F90: 1.8 | G90: 1.6 | H90: 1.7 | I90: 1.4 | J90: 1.4 | K90: 1.6 | L90: 1.5 | M90: 1.4 | N90: 1.3 | O90: 1.5 | P90: 1.3 | Q90: 1.3 | R90: 1.2 | S90: 1.2 | T90: 1.2
A91: 1990-2014 | B91: 1.7 | C91: 1.7 | D91: 1.8 | E91: 1.8 | F91: 1.8 | G91: 1.6 | H91: 1.7 | I91: 1.4 | J91: 1.4 | K91: 1.6 | L91: 1.5 | M91: 1.4 | N91: 1.3 | O91: 1.5 | P91: 1.2 | Q91: 1.3 | R91: 1.2 | S91: 1.2 | T91: 1.3 | U91: 1.1
A92: 1990-2015 | B92: 1.7 | C92: 1.7 | D92: 1.8 | E92: 1.8 | F92: 1.8 | G92: 1.6 | H92: 1.7 | I92: 1.4 | J92: 1.4 | K92: 1.6 | L92: 1.5 | M92: 1.4 | N92: 1.3 | O92: 1.5 | P92: 1.3 | Q92: 1.3 | R92: 1.3 | S92: 1.2 | T92: 1.3 | U92: 1.1 | V92: 1.1
A93: 1990-2016 | B93: 1.7 | C93: 1.7 | D93: 1.8 | E93: 1.8 | F93: 1.7 | G93: 1.6 | H93: 1.7 | I93: 1.4 | J93: 1.4 | K93: 1.6 | L93: 1.5 | M93: 1.4 | N93: 1.3 | O93: 1.3 | P93: 1.2 | Q93: 1.3 | R93: 1.1 | S93: 1.2 | T93: 1.2 | U93: 1.0 | V93: 1.1 | W93: 1.1
A94: Forestry
A95: 1990-2008 | B95: -8.3 | C95: -8.3 | D95: -9.5 | E95: -9.5 | F95: -9.6 | G95: -9.6 | H95: -9.7 | I95: -9.8 | J95: -10.0 | K95: -10.3 | L95: -10.3 | M95: -10.2 | N95: -10.1 | O95: -10.1
A96: 1990-2009 | B96: -8.3 | C96: -8.3 | D96: -9.4 | E96: -9.4 | F96: -9.6 | G96: -9.6 | H96: -9.6 | I96: -9.7 | J96: -10.0 | K96: -10.2 | L96: -10.2 | M96: -10.1 | N96: -10.0 | O96: -10.0 | P96: -10.0
A97: 1990-2010 | B97: -8.3 | C97: -8.3 | D97: -9.5 | E97: -9.5 | F97: -9.6 | G97: -9.6 | H97: -9.6 | I97: -9.8 | J97: -10.1 | K97: -10.4 | L97: -10.2 | M97: -10.1 | N97: -10.0 | O97: -10.0 | P97: -10.0 | Q97: -9.6
A98: 1990-2011 | B98: -8.2 | C98: -8.2 | D98: -9.1 | E98: -9.3 | F98: -9.6 | G98: -9.5 | H98: -9.5 | I98: -9.7 | J98: -10.0 | K98: -10.3 | L98: -10.1 | M98: -9.9 | N98: -9.9 | O98: -9.9 | P98: -9.8 | Q98: -9.6 | R98: -9.1
A99: 1990-2012 | B99: -7.0 | C99: -7.0 | D99: -7.3 | E99: -8.4 | F99: -8.8 | G99: -8.9 | H99: -9.1 | I99: -9.3 | J99: -9.5 | K99: -9.7 | L99: -9.7 | M99: -9.7 | N99: -9.7 | O99: -9.7 | P99: -9.6 | Q99: -9.9 | R99: -9.9 | S99: -9.9
A100: 1990-2013 | B100: -7.0 | C100: -7.0 | D100: -7.6 | E100: -8.5 | F100: -8.8 | G100: -9.0 | H100: -9.2 | I100: -9.4 | J100: -9.6 | K100: -9.7 | L100: -9.8 | M100: -9.8 | N100: -9.9 | O100: -9.8 | P100: -9.7 | Q100: -9.9 | R100: -9.9 | S100: -10.0 | T100: -10.0
A101: 1990-2014 | B101: -8.8 | C101: -8.8 | D101: -9.5 | E101: -10.1 | F101: -10.4 | G101: -10.4 | H101: -10.5 | I101: -10.5 | J101: -10.6 | K101: -10.6 | L101: -10.5 | M101: -10.5 | N101: -10.5 | O101: -10.5 | P101: -10.5 | Q101: -10.5 | R101: -10.5 | S101: -10.4 | T101: -10.3 | U101: -10.2
A102: 1990-2015 | B102: -5.3 | C102: -5.3 | D102: -6.1 | E102: -6.7 | F102: -6.9 | G102: -7.1 | H102: -7.4 | I102: -7.6 | J102: -7.5 | K102: -7.4 | L102: -7.5 | M102: -7.4 | N102: -7.4 | O102: -7.7 | P102: -7.8 | Q102: -7.5 | R102: -7.0 | S102: -6.5 | T102: -7.2 | U102: -7.3 | V102: -7.0
A103: 1990-2016 | B103: -7.8 | C103: -7.8 | D103: -10.0 | E103: -10.9 | F103: -11.5 | G103: -11.9 | H103: -11.8 | I103: -12.1 | J103: -12.6 | K103: -12.7 | L103: -12.6 | M103: -12.7 | N103: -13.1 | O103: -12.4 | P103: -12.7 | Q103: -13.7 | R103: -13.5 | S103: -11.3 | T103: -12.4 | U103: -12.7 | V103: -12.9 | W103: -12.7

Sheet Chart D5 data
A1: Year-on-year changes to the Baseline since the 1990-2008 inventory, by source sector. Values in MtCO2e
B3: 1990-2008 inventory | C3: 1990-2016 inventory | D3: Change from 1990-2008 to 1990-2016 | E3: 1990-2009 | F3: 1990-2010 | G3: 1990-2011 | H3: 1990-2012 | I3: 1990-2013 | J3: 1990-2014 | K3: 1990-2015 | L3: 1990-2016 | M3: % Change from 1990-2008 to 1990-2016
A4: Total | B4: 70.2 | C4: 75.7 | D4: =SUM(E4:K4) -> 6.9 | E4: 1.6 | F4: 0.5 | G4: 0.7 | H4: 2.6 | I4: 5.2 | J4: =SUM(J5:J13) -> -3.5 | K4: -0.2 | L4: =(B20) -> -1.4 | M4: =D4/B4 -> 9.8%
A5: Waste Management | B5: 5.8 | C5: 6.0 | D5: =SUM(E5:K5) -> -0.2 | E5: 0.7 | F5: 0.1 | G5: 0.1 | H5: -0.0 | I5: 3.2 | J5: -0.0 | K5: -4.2 | L5: =(B24) -> 0.4 | M5: =D5/B5 -> -2.6%
A6: Business and Industrial Process | B6: 12.4 | C6: 14.4 | D6: 2.0 | E6: 0.0 | F6: 0.8 | G6: 0.4 | H6: -0.0 | I6: 0.8 | J6: -0.0 | K6: 0.0 | L6: =(B25) -> 0.0 | M6: 16.1%
A7: Energy Supply | B7: 22.3 | C7: 22.7 | D7: 0.4 | E7: -0.1 | F7: 0.1 | G7: 0.1 | H7: -0.0 | I7: 0.3 | J7: 0.0 | K7: -0.0 | L7: =(B28) -> 0.0 | M7: 1.8%
A8: Agriculture and Related Land Use | B8: 13.8 | C8: 13.9 | D8: 0.7 | E8: 0.7 | F8: -0.2 | G8: 0.1 | H8: 0.9 | I8: 0.9 | J8: -1.9 | K8: 0.3 | L8: =(B21) -> -0.7 | M8: 5.4%
A9: Public Sector Buildings | B9: 1.3 | C9: 1.7 | D9: 0.4 | E9: 0.1 | F9: -0.1 | G9: -0.0 | H9: 0.4 | I9: 0.0 | J9: -0.0 | K9: -0.0 | L9: =(B26) -> 0.0 | M9: 31.9%
A10: Residential | B10: 7.8 | C10: 8.1 | D10: 0.3 | E10: 0.4 | F10: 0.0 | G10: 0.0 | H10: 0.0 | I10: -0.1 | J10: -0.0 | K10: 0.1 | L10: =(B23) -> -0.1 | M10: 4.4%
A11: Development | B11: 1.8 | C11: 1.9 | D11: 0.1 | E11: 0.0 | F11: -0.0 | G11: -0.0 | H11: -0.0 | I11: 0.1 | J11: 0.0 | K11: 0.0 | L11: =(B27) -> -0.0 | M11: 6.5%
A12: Transport (including International Aviation and Shipping) | B12: 13.3 | C12: 14.8 | D12: -0.0 | E12: -0.2 | F12: -0.1 | G12: -0.1 | H12: 0.1 | I12: 0.1 | J12: 0.1 | K12: 0.0 | L12: =(B29) -> 0.0 | M12: -0.1%
A13: Forestry | B13: -8.3 | C13: -7.8 | D13: 3.0 | E13: 0.0 | F13: -0.0 | G13: 0.1 | H13: 1.2 | I13: -0.0 | J13: -1.7 | K13: 3.5 | L13: =(B22) -> -2.6 | M13: -36.6%
A15: Unlike for other source sectors, downwards revisions to net emissions from forestry are presented as a positive percentage change. This is because forestry causes a net removal of emissions. This means that an downwards revision from forestry will cause a positive percentage change in the quantity of emissions removed.
B19: Change between 1990-2015 and 1990-2016
A20: TOTAL | B20: ='Chart D2 data '!D4 -> -1.40
A21: Agriculture and Related Land Use | B21: ='Chart D2 data '!D5 -> -0.65
A22: Forestry | B22: ='Chart D2 data '!D6 -> -2.57
A23: Residential | B23: ='Chart D2 data '!D7 -> -0.07
A24: Waste Management | B24: ='Chart D2 data '!D8 -> 0.40
A25: Business and Industrial Process | B25: ='Chart D2 data '!D9 -> 0.04
A26: Public Sector Buildings | B26: ='Chart D2 data '!D10 -> 0.01
A27: Development | B27: ='Chart D2 data '!D11 -> -0.00
A28: Energy Supply | B28: ='Chart D2 data '!D12 -> 0.00
A29: Transport (including International Aviation and Shipping) | B29: ='Chart D2 data '!D13 -> 0.00
